Workbook

Sheet 包含字符筛选
B1: 物料名称
B2: ="*"&C2&"*" -> *盒* | C2: 盒 | F2: 托
F3: 盒

Sheet 明细
A1: 日期 | B1: 日期 | C1: 订单号 | D1: 单号 | E1: 物料内部编号 | F1: 客户名称 | G1: 产品名称 | H1: 物料名称 | I1: 物料规格 | J1: 单位 | K1: 供应商名称 | L1: 期初数量 | M1: 收入数量 | N1: 发出数量 | O1: 备 注 | P1: 公式结存
A2: 2017-08-17 | B2: =TEXT(A2,"yyyymmdd") -> 20170817 | C2: D001 | D2: 345 | E2: 1 | F2: 洁士宝 | G2: 纳米超浓缩洗衣片 | H2: 白色内托 | I2: 30片 | J2: PCS | L2: =VLOOKUP(E:E,基础资料!B:M,12,0) -> 202 | P2: =SUMIF(E:E,E2,L:L)+SUMIF(E:E,E2,M:M)-SUMIF(E:E,E2,N:N) -> 502
A3: 2017-08-17 | B3: =TEXT(A3,"yyyymmdd") -> 20170817 | C3: D001 | D3: 345 | E3: 2 | F3: 洁士宝 | G3: 纳米超浓缩洗衣片 | H3: 彩盒 | I3: 50片 | J3: PCS | L3: =VLOOKUP(E:E,基础资料!B:M,12,0) -> 150 | P3: =SUMIF(E:E,E3,L:L)+SUMIF(E:E,E3,M:M)-SUMIF(E:E,E3,N:N) -> 450
A4: 2017-08-17 | B4: 20170817 | C4: D001 | D4: 345 | E4: 3 | F4: 洁士宝 | G4: 纳米超浓缩洗衣片 | H4: 粉色封套 | I4: 30片 | J4: PCS | L4: =VLOOKUP(E:E,基础资料!B:M,12,0) -> 230 | P4: =SUMIF(E:E,E4,L:L)+SUMIF(E:E,E4,M:M)-SUMIF(E:E,E4,N:N) -> 530
A5: 2017-08-17 | B5: 20170817 | C5: D001 | D5: 345 | E5: 4 | F5: 洁士宝 | G5: 纳米超浓缩洗衣片 | H5: 粉色内托 | I5: 30片 | J5: PCS | L5: =VLOOKUP(E:E,基础资料!B:M,12,0) -> 195 | P5: =SUMIF(E:E,E5,L:L)+SUMIF(E:E,E5,M:M)-SUMIF(E:E,E5,N:N) -> 495
A6: 2017-08-17 | B6: 20170817 | C6: D001 | D6: 345 | E6: 5 | F6: 洁士宝 | G6: 纳米超浓缩洗衣片 | H6: 红色封套 | I6: 30片 | J6: PCS | L6: =VLOOKUP(E:E,基础资料!B:M,12,0) -> 224 | P6: =SUMIF(E:E,E6,L:L)+SUMIF(E:E,E6,M:M)-SUMIF(E:E,E6,N:N) -> 524
A7: 2017-10-17 | B7: 20171017 | C7: D003 | D7: 346 | E7: 1 | F7: 洁士宝 | G7: 纳米超浓缩洗衣片 | H7: 白色内托 | I7: 30片 | J7: PCS | M7: 500 | P7: =SUMIF(E:E,E7,L:L)+SUMIF(E:E,E7,M:M)-SUMIF(E:E,E7,N:N) -> 502
A8: 2017-10-17 | B8: 20171017 | C8: D003 | D8: 345 | E8: 2 | F8: 洁士宝 | G8: 纳米超浓缩洗衣片 | H8: 彩盒 | I8: 50片 | J8: PCS | M8: 500 | P8: =SUMIF(E:E,E8,L:L)+SUMIF(E:E,E8,M:M)-SUMIF(E:E,E8,N:N) -> 450
A9: 2017-10-17 | B9: 20171017 | C9: D003 | D9: 345 | E9: 3 | F9: 洁士宝 | G9: 纳米超浓缩洗衣片 | H9: 粉色封套 | I9: 30片 | J9: PCS | M9: 500 | P9: =SUMIF(E:E,E9,L:L)+SUMIF(E:E,E9,M:M)-SUMIF(E:E,E9,N:N) -> 530
A10: 2017-10-17 | B10: 20171017 | C10: D003 | D10: 345 | E10: 4 | F10: 洁士宝 | G10: 纳米超浓缩洗衣片 | H10: 粉色内托 | I10: 30片 | J10: PCS | M10: 500 | P10: =SUMIF(E:E,E10,L:L)+SUMIF(E:E,E10,M:M)-SUMIF(E:E,E10,N:N) -> 495
A11: 2017-10-17 | B11: 20171017 | C11: D003 | D11: 345 | E11: 5 | F11: 洁士宝 | G11: 纳米超浓缩洗衣片 | H11: 红色封套 | I11: 30片 | J11: PCS | M11: 500 | P11: =SUMIF(E:E,E11,L:L)+SUMIF(E:E,E11,M:M)-SUMIF(E:E,E11,N:N) -> 524
A12: 2017-10-17 | B12: 20171017 | C12: D003 | D12: 346 | E12: 1 | F12: 洁士宝 | G12: 纳米超浓缩洗衣片 | H12: 白色内托 | I12: 30片 | J12: PCS | N12: 200 | P12: =SUMIF(E:E,E12,L:L)+SUMIF(E:E,E12,M:M)-SUMIF(E:E,E12,N:N) -> 502
A13: 2017-10-17 | B13: 20171017 | C13: D003 | D13: 345 | E13: 2 | F13: 洁士宝 | G13: 纳米超浓缩洗衣片 | H13: 彩盒 | I13: 50片 | J13: PCS | N13: 200 | P13: =SUMIF(E:E,E13,L:L)+SUMIF(E:E,E13,M:M)-SUMIF(E:E,E13,N:N) -> 450
A14: 2017-10-17 | B14: 20171017 | C14: D003 | D14: 345 | E14: 3 | F14: 洁士宝 | G14: 纳米超浓缩洗衣片 | H14: 粉色封套 | I14: 30片 | J14: PCS | N14: 200 | P14: =SUMIF(E:E,E14,L:L)+SUMIF(E:E,E14,M:M)-SUMIF(E:E,E14,N:N) -> 530
A15: 2017-10-17 | B15: 20171017 | C15: D003 | D15: 345 | E15: 4 | F15: 洁士宝 | G15: 纳米超浓缩洗衣片 | H15: 粉色内托 | I15: 30片 | J15: PCS | N15: 200 | P15: =SUMIF(E:E,E15,L:L)+SUMIF(E:E,E15,M:M)-SUMIF(E:E,E15,N:N) -> 495
A16: 2017-10-17 | B16: 20171017 | C16: D003 | D16: 345 | E16: 5 | F16: 洁士宝 | G16: 纳米超浓缩洗衣片 | H16: 红色封套 | I16: 30片 | J16: PCS | N16: 200 | P16: =SUMIF(E:E,E16,L:L)+SUMIF(E:E,E16,M:M)-SUMIF(E:E,E16,N:N) -> 524
A17: 2017-08-17 | B17: 20170817 | C17: D001 | D17: 345 | E17: 6 | F17: 洁士宝 | G17: 纳米超浓缩洗衣片 | H17: 红色封套次品 | I17: 20片 | J17: PCS | L17: =VLOOKUP(E:E,基础资料!B:M,12,0) -> 0 | P17: =SUMIF(E:E,E17,L:L)+SUMIF(E:E,E17,M:M)-SUMIF(E:E,E17,N:N) -> 0
A18: 2017-08-17 | B18: 20170817 | C18: D001 | D18: 345 | E18: 7 | F18: 洁士宝 | G18: 纳米超浓缩洗衣片 | H18: 红色封套次品 | I18: 50片 | J18: PCS | L18: =VLOOKUP(E:E,基础资料!B:M,12,0) -> 0 | P18: =SUMIF(E:E,E18,L:L)+SUMIF(E:E,E18,M:M)-SUMIF(E:E,E18,N:N) -> 0
A19: 2017-08-17 | B19: 20170817 | C19: D001 | D19: 345 | E19: 8 | F19: 洁士宝 | G19: 纳米超浓缩洗衣片 | H19: 红色内托 | I19: 30片 | J19: PCS | L19: =VLOOKUP(E:E,基础资料!B:M,12,0) -> 208 | P19: =SUMIF(E:E,E19,L:L)+SUMIF(E:E,E19,M:M)-SUMIF(E:E,E19,N:N) -> 208
A20: 2017-08-17 | B20: 20170817 | C20: D001 | D20: 345 | E20: 9 | F20: 洁士宝 | G20: 纳米超浓缩洗衣片 | H20: 蓝色封套 | I20: 30片 | J20: PCS | L20: =VLOOKUP(E:E,基础资料!B:M,12,0) -> 225 | P20: =SUMIF(E:E,E20,L:L)+SUMIF(E:E,E20,M:M)-SUMIF(E:E,E20,N:N) -> 225
A21: 2017-08-17 | B21: 20170817 | C21: D001 | D21: 345 | E21: 10 | F21: 洁士宝 | G21: 纳米超浓缩洗衣片 | H21: 铝袋 | I21: 3片 | J21: PCS | L21: =VLOOKUP(E:E,基础资料!B:M,12,0) -> 2000 | P21: =SUMIF(E:E,E21,L:L)+SUMIF(E:E,E21,M:M)-SUMIF(E:E,E21,N:N) -> 2000
E22: 11 | F22: 洁士宝 | G22: 纳米超浓缩洗衣片 | H22: 吸塑盖 | I22: 30片 | J22: PCS | L22: =VLOOKUP(E:E,基础资料!B:M,12,0) -> 280 | P22: =SUMIF(E:E,E22,L:L)+SUMIF(E:E,E22,M:M)-SUMIF(E:E,E22,N:N) -> 280
E23: 12 | F23: 洁士宝 | G23: 纳米超浓缩洗衣片 | H23: 吸塑盖 | I23: 50片 | J23: PCS | L23: =VLOOKUP(E:E,基础资料!B:M,12,0) -> 160 | P23: =SUMIF(E:E,E23,L:L)+SUMIF(E:E,E23,M:M)-SUMIF(E:E,E23,N:N) -> 160
E24: 13 | F24: 洁士宝 | G24: 纳米超浓缩洗衣片 | H24: 吸塑盒 | I24: 50片 | J24: PCS | L24: =VLOOKUP(E:E,基础资料!B:M,12,0) -> 169 | P24: =SUMIF(E:E,E24,L:L)+SUMIF(E:E,E24,M:M)-SUMIF(E:E,E24,N:N) -> 169

Sheet 基础资料
A1: 原始顺序 | B1: 物料内部编号 | C1: 客户名称 | D1: 产品名称 | E1: 物料名称 | F1: 物料规格 | G1: 单位 | H1: 本月结存 | I1: 本月入库 | J1: 本月出库 | K1: 备 注 | L1: 上月结存 | M1: 盘点数据 | N1: 差异 | O1: 单据编号 | P1: 入库数量 | Q1: 单据编号 | R1: 出库数量
A2: 1 | B2: 241 | C2: 田惠 | D2: 轻盈紧实精华油 | E2: 瓶子 | F2: 5ml | G2: PCS | H2: 9855 | I2: 0 | J2: 0 | L2: 9855 | M2: 9855 | N2: =+M2-H2 -> 0
A3: 2 | B3: 238 | C3: 田惠 | D3: 轻盈紧实精华油 | E3: 内塞 | F3: 5ml | G3: PCS | H3: 19572 | I3: 0 | J3: 0 | L3: 19572 | M3: 19530 | N3: -42
A4: 3 | B4: 239 | C4: 田惠 | D4: 轻盈紧实精华霜 | E4: 瓶子 | F4: 10ml | G4: PCS | H4: 9772 | I4: 0 | J4: 0 | L4: 9772 | M4: 9810 | N4: 38
A5: 4 | B5: 240 | C5: 田惠 | D5: 魅之秀葫芦瓶 | E5: 瓶子 | F5: 50ml | G5: PCS | H5: 844 | I5: 0 | J5: 0 | L5: 844 | M5: 924 | N5: 80
A6: 5 | B6: 245 | C6: 田惠 | D6: 魅之秀垫片 | F6: 50ml | G6: PCS | H6: 844 | I6: 0 | J6: 0 | L6: 844 | M6: 844 | N6: 0
A7: 6 | B7: 246 | C7: 田惠 | D7: 魅之秀内塞 | F7: 50ml | G7: PCS | H7: 844 | I7: 0 | J7: 0 | L7: 844 | M7: 860 | N7: 16
A8: 7 | B8: 247 | C8: 田惠 | D8: 魅之秀盖子 | F8: 50ml | G8: PCS | H8: 844 | I8: 0 | J8: 0 | L8: 844 | M8: 844 | N8: 0
A9: 8 | B9: 236 | C9: 田惠 | D9: 轻盈紧实精华油 | E9: 盖子 | F9: 5ml | G9: PCS | H9: 23800 | I9: 0 | J9: 0 | L9: 23800 | M9: 23800 | N9: 0
A10: 9 | B10: 244 | C10: 田惠 | D10: 轻盈紧实精华油 | E10: 亚金盖 | F10: 10ml | G10: PCS | I10: 0 | J10: 0 | M10: 19530 | N10: 19530
A11: 10 | B11: 243 | C11: 田惠 | D11: 魅立秀轻盈紧致套盒 | E11: 套盒 | G11: PCS | H11: 352 | I11: 0 | J11: 0 | L11: 352 | M11: 352 | N11: 0
A12: 11 | B12: 237 | C12: 田惠 | D12: 魅立秀轻盈紧致 | E12: 海棉 | G12: PCS | H12: 350 | I12: 0 | J12: 0 | L12: 350 | M12: 436 | N12: 86
A13: 12 | B13: 242 | C13: 田惠 | D13: 魅立秀轻盈紧致 | E13: 收缩膜 | H13: 530 | L13: 530 | M13: 210 | N13: -320
A14: 13 | B14: 13 | C14: 洁士宝 | D14: 纳米超浓缩洗衣片 | E14: 吸塑盒 | F14: 50片 | G14: PCS | H14: 169 | I14: 169 | J14: 0 | M14: 169 | P14: 169
A15: 14 | B15: 12 | C15: 洁士宝 | D15: 纳米超浓缩洗衣片 | E15: 吸塑盖 | F15: 50片 | G15: PCS | H15: 160 | I15: 160 | J15: 0 | M15: 160 | P15: 160
A16: 15 | B16: 15 | C16: 洁士宝 | D16: 纳米超浓缩洗衣片 | E16: 专用纸箱 | G16: PCS | H16: 0 | I16: 0 | J16: 0 | M16: 0
A17: 16 | B17: 2 | C17: 洁士宝 | D17: 纳米超浓缩洗衣片 | E17: 彩盒 | F17: 50片 | G17: PCS | H17: 150 | I17: 150 | J17: 0 | M17: 150 | P17: 150
A18: 17 | B18: 4 | C18: 洁士宝 | D18: 纳米超浓缩洗衣片 | E18: 粉色内托 | F18: 30片 | G18: PCS | H18: 195 | I18: 195 | J18: 0 | M18: 195 | P18: 195
A19: 18 | B19: 8 | C19: 洁士宝 | D19: 纳米超浓缩洗衣片 | E19: 红色内托 | F19: 30片 | G19: PCS | H19: 208 | I19: 208 | J19: 0 | M19: 208 | P19: 208
A20: 19 | B20: 1 | C20: 洁士宝 | D20: 纳米超浓缩洗衣片 | E20: 白色内托 | F20: 30片 | G20: PCS | H20: 202 | I20: 202 | J20: 0 | M20: 202 | P20: 202
A21: 20 | B21: 3 | C21: 洁士宝 | D21: 纳米超浓缩洗衣片 | E21: 粉色封套 | F21: 30片 | G21: PCS | H21: 230 | I21: 230 | J21: 0 | M21: 230 | P21: 230
A22: 21 | B22: 5 | C22: 洁士宝 | D22: 纳米超浓缩洗衣片 | E22: 红色封套 | F22: 30片 | G22: PCS | H22: 224 | I22: 224 | J22: 0 | M22: 224 | P22: 224
A23: 22 | B23: 9 | C23: 洁士宝 | D23: 纳米超浓缩洗衣片 | E23: 蓝色封套 | F23: 30片 | G23: PCS | H23: 225 | I23: 225 | J23: 0 | M23: 225 | P23: 225
A24: 23 | B24: 10 | C24: 洁士宝 | D24: 纳米超浓缩洗衣片 | E24: 铝袋 | F24: 3片 | G24: PCS | H24: 2000 | I24: 2000 | J24: 0 | M24: 2000 | P24: 2000
A25: 24 | B25: 14 | C25: 洁士宝 | D25: 纳米超浓缩洗衣片 | E25: 中盒 | G25: PCS | H25: 0 | I25: 0 | J25: 0 | M25: 0
A26: 25 | B26: 6 | C26: 洁士宝 | D26: 纳米超浓缩洗衣片 | E26: 红色封套次品 | F26: 20片 | G26: PCS | H26: 0 | I26: 0 | J26: 0 | M26: 0
A27: 26 | B27: 7 | C27: 洁士宝 | D27: 纳米超浓缩洗衣片 | E27: 红色封套次品 | F27: 50片 | G27: PCS | H27: 0 | I27: 0 | J27: 0 | M27: 0
A28: 27 | B28: 11 | C28: 洁士宝 | D28: 纳米超浓缩洗衣片 | E28: 吸塑盖 | F28: 30片 | G28: PCS | H28: 280 | I28: 280 | J28: 0 | M28: 280 | P28: 280
A29: 28 | B29: 65 | C29: 郎顿 | D29: 幻彩活力素 | E29: 折断瓶 | F29: 2ml | G29: PCS | H29: 70 | I29: 0 | J29: 0 | L29: 70
A30: 29 | B30: 66 | C30: 郎顿 | D30: 维斯润泽乳 | E30: 折断瓶 | F30: 2ml | G30: PCS | H30: 0 | I30: 0 | J30: 0
A31: 30 | B31: 69 | C31: 郎顿 | D31: 内塞 | F31: 2ml | G31: PCS | H31: 0 | I31: 0 | J31: 0
A32: 31 | B32: 70 | C32: 郎顿 | D32: 顶针 | F32: 2ml | G32: PCS | H32: 0 | I32: 0 | J32: 0
A33: 32 | B33: 63 | C33: 郎顿 | D33: 幻彩按摩霜 | E33: 折断瓶 | F33: 10g | G33: PCS | H33: 140 | I33: 0 | J33: 0 | L33: 140
A34: 33 | B34: 31 | C34: 郎顿 | D34: 幻彩按摩霜 | E34: 内塞 | F34: 10g | G34: PCS | H34: 0 | I34: 0 | J34: 0
A35: 34 | B35: 26 | C35: 郎顿 | D35: 幻彩按摩霜 | E35: 顶针 | F35: 10g | G35: PCS | H35: 0 | I35: 0 | J35: 0
A36: 35 | B36: 41 | C36: 郎顿 | D36: 幻彩爽柔露 | E36: 喷雾瓶 | F36: 5ml | G36: PCS | H36: 0 | I36: 0 | J36: 0
A37: 36 | B37: 40 | C37: 郎顿 | D37: 幻彩爽柔露 | E37: 喷雾泵头 | F37: 5ml | G37: PCS | H37: 0 | I37: 0 | J37: 0
A38: 37 | B38: 48 | C38: 郎顿 | D38: 风华绝代 | E38: 套盒 | G38: PCS | H38: 15 | I38: 0 | J38: 0 | K38: 盘点 | L38: 15
A39: 38 | B39: 23 | C39: 郎顿 | D39: 风华绝代 | E39: 标签 | G39: PCS | H39: 950 | I39: 0 | J39: 0 | K39: 盘点 | L39: 950
A40: 39 | B40: 45 | C40: 郎顿 | D40: 风华绝代 | E40: 收缩膜 | G40: PCS | H40: 500 | I40: 0 | J40: 0 | K40: 盘点 | L40: 500
A41: 40 | B41: 32 | C41: 郎顿 | D41: 风华绝代 | E41: 牛油纸 | G41: PCS | H41: 550 | I41: 0 | J41: 0 | K41: 盘点 | L41: 550
A42: 41 | B42: 49 | C42: 郎顿 | D42: 性香元液 | E42: 套盒 | G42: PCS | H42: 12 | I42: 0 | J42: 0 | K42: 次品 | L42: 12
A43: 42 | B43: 24 | C43: 郎顿 | D43: 性香元液 | E43: 标签 | G43: PCS | H43: 500 | I43: 0 | J43: 0 | K43: 盘点 | L43: 500
A44: 43 | B44: 33 | C44: 郎顿 | D44: 性香元液 | E44: 牛油纸 | G44: PCS | H44: 500 | I44: 0 | J44: 0 | K44: 盘点 | L44: 500
A45: 44 | B45: 46 | C45: 郎顿 | D45: 性香元液 | E45: 收缩膜 | G45: PCS | H45: 600 | I45: 0 | J45: 0 | K45: 盘点 | L45: 600
A46: 45 | B46: 25 | C46: 郎顿 | D46: 性香元液 | E46: 玻璃瓶 | F46: 10ml | H46: 260 | I46: 0 | J46: 0 | K46: 盘点 | L46: 260
A47: 46 | B47: 27 | C47: 郎顿 | D47: 性香元液 | E47: 金色喷头 | F47: 10ml | H47: 0 | I47: 0 | J47: 0 | K47: 盘点
A48: 47 | B48: 28 | C48: 郎顿 | D48: 性香元液 | E48: 金色外罩 | F48: 10ml | H48: 0 | I48: 0 | J48: 0 | K48: 盘点
A49: 48 | B49: 61 | C49: 郎顿 | D49: 维斯蜜语 | E49: 印花 | F49: 13分 | G49: PCS | H49: 467 | I49: 0 | J49: 0 | K49: 盘点 | L49: 467
A50: 49 | B50: 64 | C50: 郎顿 | D50: 爱慕柔情霜 | E50: 折断瓶 | F50: 2g | G50: PCS | H50: 0 | I50: 0 | J50: 0
A51: 50 | B51: 43 | C51: 郎顿 | D51: 维斯蜜语凝香露 | E51: 瓶子 | F51: 30ml | G51: PCS | H51: 498 | I51: 0 | J51: 0
A52: 51 | B52: 21 | C52: 郎顿 | D52: 维斯蜜语凝香露 | E52: 泵头 | F52: 30ml | G52: PCS | H52: 1325 | I52: 0 | J52: 0 | L52: 825
A53: 52 | B53: 20 | C53: 郎顿 | D53: 维斯蜜语凝香露 | E53: 白色外罩 | F53: 30ml | G53: PCS | H53: 500 | I53: 0 | J53: 0
A54: 53 | B54: 50 | C54: 郎顿 | D54: 维斯润泽乳 | E54: 套盒 | G54: PCS | H54: 1400 | I54: 0 | J54: 0 | L54: 1400
A55: 54 | B55: 51 | C55: 郎顿 | D55: 凝香露 | E55: 套盒 | G55: PCS | H55: 0 | I55: 0 | J55: 0
A56: 55 | B56: 62 | C56: 郎顿 | D56: 维斯蜜语 | E56: 印花 | F56: 500分 | G56: PCS | H56: 800 | I56: 0 | J56: 0 | L56: 800
A57: 56 | B57: 67 | C57: 郎顿 | D57: 维斯润泽乳 | E57: 纸箱 | G57: PCS | H57: 100 | I57: 0 | J57: 0 | L57: 100
A58: 57 | B58: 52 | C58: 郎顿 | D58: 维斯蜜语醉红颜 | E58: 套盒 | G58: PCS | H58: 535 | I58: 0 | J58: 0 | L58: 535
A59: 58 | B59: 53 | C59: 郎顿 | D59: 春之恋（次品） | E59: 套盒 | G59: PCS | H59: 4 | I59: 0 | J59: 0 | L59: 4
A60: 59 | B60: 44 | C60: 郎顿 | D60: 维斯润泽乳 | E60: 瓶子 | F60: 50ml | G60: PCS | I60: 0 | J60: 0
A61: 60 | B61: 22 | C61: 郎顿 | D61: 维斯润泽乳 | E61: 泵头 | F61: 50ml | G61: PCS | H61: 2994 | I61: 0 | J61: 0 | L61: 980
A62: 61 | B62: 29 | C62: 郎顿 | D62: 幻彩柔丝秘贴 | E62: 铝袋 | G62: PCS | H62: 3150 | I62: 0 | J62: 0 | L62: 3150
A63: 62 | B63: 68 | C63: 郎顿 | D63: 幻彩柔丝秘贴 | E63: 珠光膜 | G63: PCS | H63: 0 | I63: 0 | J63: 0 | L63: 13400
A64: 63 | B64: 30 | C64: 郎顿 | D64: 幻彩柔丝秘贴 | E64: 膜布 | G64: PCS | H64: 4500 | I64: 0 | J64: 0 | L64: 19100
A65: 64 | B65: 72 | C65: 郎顿 | D65: 保险单 | G65: PCS | H65: 2536 | I65: 0 | J65: 0 | L65: 2536
A66: 65 | B66: 73 | C66: 郎顿 | D66: 素女经 | G66: PCS | H66: 30 | I66: 0 | J66: 0 | L66: 30
A67: 66 | B67: 54 | C67: 郎顿 | D67: 紧致如初 | E67: 套盒标 | G67: PCS | H67: 1040 | I67: 0 | J67: 0 | L67: 1040
A68: 67 | B68: 55 | C68: 郎顿 | D68: 贵妃醉 | E68: 套盒标 | G68: PCS | H68: 340 | I68: 0 | J68: 0 | L68: 340
A69: 68 | B69: 56 | C69: 郎顿 | D69: 维斯润泽乳 | E69: 套盒标 | G69: PCS | H69: 870 | I69: 0 | J69: 0 | L69: 870
A70: 69 | B70: 57 | C70: 郎顿 | D70: 醉红颜 | E70: 套盒标 | G70: PCS | H70: 419 | I70: 0 | J70: 0 | L70: 419
A71: 70 | B71: 58 | C71: 郎顿 | D71: 凝香露 | E71: 套盒标 | G71: PCS | H71: 1300 | I71: 0 | J71: 0 | L71: 1300
A72: 71 | B72: 59 | C72: 郎顿 | D72: 维纳斯之吻 | E72: 套盒标 | G72: PCS | H72: 1100 | I72: 0 | J72: 0 | L72: 1100
A73: 72 | B73: 60 | C73: 郎顿 | D73: 春之恋 | E73: 套盒标 | G73: PCS | H73: 443 | I73: 0 | J73: 0 | L73: 443
A74: 73 | B74: 42 | C74: 郎顿 | D74: 梦幻爱洛蒙霜 | E74: 瓶 | F74: 30g | G74: 套 | H74: 36 | I74: 0 | J74: 0 | L74: 36
A75: 74 | B75: 34 | C75: 郎顿 | D75: 贵妃醉 | E75: 牛油纸 | G75: PCS | H75: 18 | I75: 0 | J75: 0 | L75: 18
A76: 75 | B76: 35 | C76: 郎顿 | D76: 醉红颜 | E76: 牛油纸 | G76: PCS | H76: 610 | I76: 0 | J76: 0 | L76: 610
A77: 76 | B77: 36 | C77: 郎顿 | D77: 春之恋 | E77: 牛油纸 | G77: PCS | H77: 20 | I77: 0 | J77: 0 | L77: 20
A78: 77 | B78: 17 | C78: 郎顿 | D78: 印花 | E78: 175分 | G78: PCS | H78: 1000 | I78: 0 | J78: 0 | L78: 1000
A79: 78 | B79: 18 | C79: 郎顿 | D79: 印花 | E79: 800分 | G79: PCS | H79: 800 | I79: 0 | J79: 0 | L79: 800
A80: 79 | B80: 37 | C80: 郎顿 | D80: 维纳斯之吻 | E80: 牛油纸 | G80: PCS | H80: 1000 | I80: 0 | J80: 0 | L80: 1000
A81: 80 | B81: 19 | C81: 郎顿 | D81: 唤醒精华肽 | E81: 安瓶 | G81: PCS | H81: 35 | I81: 0 | J81: 0 | L81: 35
A82: 81 | B82: 38 | C82: 郎顿 | D82: 凝香露 | E82: 牛油纸 | G82: PCS | H82: 110 | I82: 0 | J82: 0 | L82: 110
A83: 82 | B83: 39 | C83: 郎顿 | D83: 维斯润泽乳 | E83: 牛油纸 | G83: PCS | H83: 100 | I83: 0 | J83: 0 | L83: 100
A84: 83 | B84: 16 | C84: 郎顿 | D84: 维斯蜜语 | E84: 10印花 | G84: PCS | H84: 86 | I84: 0 | J84: 0 | L84: 86
A85: 84 | B85: 71 | C85: 郎顿 | D85: 皇冠瓶 | F85: 30ml | G85: PCS | H85: 0 | I85: 0 | J85: 0
A86: 85 | B86: 47 | C86: 郎顿 | D86: 维斯润泽乳 | E86: 收缩膜 | G86: PCS | H86: 0 | I86: 0 | J86: 0
A87: 86 | B87: 85 | C87: 刘海平 | D87: 圣菲锐新收缩膜 | G87: PCS | H87: 11000 | I87: 32000 | J87: 21000 | L87: 0
A88: 87 | B88: 86 | C88: 刘海平 | D88: 空白铝袋 | G88: PCS | H88: 14400 | I88: 0 | J88: 0 | L88: 0
A89: 88 | B89: 74 | C89: 刘海平 | D89: 珠光膜+面膜 | F89: 1+1 | G89: PCS | H89: 0 | I89: 100500 | J89: 100500 | L89: 0
A90: 89 | B90: 87 | C90: 刘海平 | D90: 锐新能量面膜铝袋 | G90: PCS | H90: 104050 | I90: 205305 | J90: 101255 | L90: 0
A91: 90 | B91: 76 | C91: 刘海平 | D91: 锐新能量面膜彩盒 | F91: 彩盒 | G91: PCS | H91: 1650 | I91: 41559 | J91: 19150 | L91: 0
A92: 91 | B92: 84 | C92: 刘海平 | D92: 锐新能量 | F92: 纸箱 | G92: PCS | H92: 33 | I92: 353 | J92: 333 | L92: 0
A93: 92 | B93: 80 | C93: 刘海平 | D93: 锐新能量 | F93: 刀卡 | G93: PCS | H93: 100 | I93: 706 | J93: 653 | L93: 0
A94: 93 | B94: 83 | C94: 刘海平 | D94: 圣菲隔离乳40ml | F94: 内托 | G94: PCS | H94: 10110 | I94: 0 | J94: 0 | L94: 10110
A95: 94 | B95: 77 | C95: 刘海平 | D95: 圣菲逆生原生液100ml（老款） | F95: 彩盒 | G95: PCS | H95: 880 | I95: 0 | J95: 0 | L95: 880
A96: 95 | B96: 78 | C96: 刘海平 | D96: 圣菲隔离乳40ml | F96: 彩盒 | G96: PCS | H96: 11170 | I96: 0 | J96: 0 | L96: 11170
A97: 96 | B97: 75 | C97: 刘海平 | D97: 圣菲时光逆转玻璃瓶100ml | F97: 玻璃瓶 | G97: PCS | H97: 53 | I97: 0 | J97: 0 | L97: 53
A98: 97 | B98: 79 | C98: 刘海平 | D98: 锐新能量面膜彩盒次品 | F98: 彩盒 | H98: 93
A99: 98 | B99: 82 | C99: 刘海平 | D99: 锐新能量面膜+铝袋 | F99: 面膜+铝袋 | H99: 1168
A100: 99 | B100: 81 | C100: 刘海平 | D100: 锐新能量铝袋次品 | F100: 铝袋 | H100: 253
A101: 100 | B101: 115 | C101: 马文英 | D101: 通用内托 | E101: 内托 | F101: 230ml | G101: PCS | H101: 7250 | I101: 0 | J101: 0 | L101: 7250 | M101: =+H101 -> 7250 | N101: =+M101-H101 -> 0
A102: 101 | B102: 114 | C102: 马文英 | D102: 逆时空面膜 | E102: 盖子 | F102: 200g | G102: PCS | H102: 3570 | I102: 0 | J102: 0 | L102: 3570 | M102: 3570 | N102: 0
A103: 102 | B103: 117 | C103: 马文英 | D103: 逆时空面膜 | E103: 手拉垫片 | F103: 200g | G103: PCS | H103: 3678 | I103: 0 | J103: 0 | L103: 3678 | M103: 3678 | N103: 0
A104: 103 | B104: 91 | C104: 马文英 | D104: 逆时空面膜 | E104: 1号瓶 | F104: 200g | G104: PCS | H104: 888 | I104: 0 | J104: 0 | L104: 888 | M104: 888 | N104: 0
A105: 104 | B105: 95 | C105: 马文英 | D105: 逆时空面膜 | E105: 2号瓶 | F105: 200g | G105: PCS | H105: 888 | I105: 0 | J105: 0 | L105: 888 | M105: 888 | N105: 0
A106: 105 | B106: 99 | C106: 马文英 | D106: 逆时空面膜 | E106: 3号瓶 | F106: 200g | G106: PCS | H106: 745 | I106: 0 | J106: 0 | L106: 745 | M106: 745 | N106: 0
A107: 106 | B107: 102 | C107: 马文英 | D107: 逆时空面膜 | E107: 4号瓶 | F107: 200g | G107: PCS | H107: 750 | I107: 0 | J107: 0 | L107: 750 | M107: 750 | N107: 0
A108: 107 | B108: 118 | C108: 马文英 | D108: 椰子洗面剂 | E108: 塑瓶 | F108: 230ml | G108: PCS | H108: 988 | I108: 0 | J108: 0 | L108: 988 | M108: 988 | N108: 0
A109: 108 | B109: 119 | C109: 马文英 | D109: 逆时空面胶 | E109: 塑瓶 | F109: 230ml | G109: PCS | H109: 786 | I109: 0 | J109: 0 | L109: 786 | M109: 786 | N109: 0
A110: 109 | B110: 120 | C110: 马文英 | D110: 富氧离子水 | E110: 塑瓶 | F110: 230ml | G110: PCS | H110: 1249 | I110: 0 | J110: 0 | L110: 1249 | M110: 1249 | N110: 0
A111: 110 | B111: 121 | C111: 马文英 | D111: 逆时空面霜 | E111: 塑瓶 | F111: 230ml | G111: PCS | H111: 979 | I111: 0 | J111: 0 | L111: 979 | M111: 979 | N111: 0
A112: 111 | B112: 122 | C112: 马文英 | D112: 快速卸妆精华 | E112: 塑瓶 | F112: 230ml | G112: PCS | H112: 270 | I112: 0 | J112: 0 | L112: 270 | M112: 270 | N112: 0
A113: 112 | B113: 133 | C113: 马文英 | D113: 通用泵头 | F113: 230ml | G113: PCS | H113: 4719 | I113: 0 | J113: 0 | L113: 4719 | M113: 4719 | N113: 0
A114: 113 | B114: 134 | C114: 马文英 | D114: 通用外罩 | F114: 230ml | G114: PCS | H114: 4120 | I114: 0 | J114: 0 | L114: 4120 | M114: 4120 | N114: 0
A115: 114 | B115: 135 | C115: 马文英 | D115: 通用泵头 | F115: 30ml | G115: PCS | H115: 1200 | I115: 0 | J115: 0 | L115: 1200 | M115: 1200 | N115: 0
A116: 115 | B116: 136 | C116: 马文英 | D116: 通用外罩 | F116: 30ml | G116: PCS | H116: 2280 | I116: 0 | J116: 0 | L116: 2280 | M116: 2280 | N116: 0
A117: 116 | B117: 123 | C117: 马文英 | D117: 椰子洗面剂 | E117: 塑瓶 | F117: 30ml | G117: PCS | H117: 630 | I117: 0 | J117: 0 | L117: 630 | M117: 630 | N117: 0
A118: 117 | B118: 124 | C118: 马文英 | D118: 快速卸妆精华 | E118: 塑瓶 | F118: 30ml | G118: PCS | H118: 700 | I118: 0 | J118: 0 | L118: 700 | M118: 700 | N118: 0
A119: 118 | B119: 125 | C119: 马文英 | D119: 逆时空面胶 | E119: 塑瓶 | F119: 30ml | G119: PCS | H119: 95 | I119: 0 | J119: 0 | L119: 95 | M119: 95 | N119: 0
A120: 119 | B120: 126 | C120: 马文英 | D120: 逆时空面霜 | E120: 塑瓶 | F120: 30ml | G120: PCS | H120: 230 | I120: 0 | J120: 420 | L120: 650 | M120: 230 | N120: 0 | R120: 420
A121: 120 | B121: 109 | C121: 马文英 | D121: 椰子洗面剂 | E121: 彩盒 | F121: 230ml | G121: PCS | H121: 800 | I121: 0 | J121: 0 | L121: 800 | M121: 800 | N121: 0
A122: 121 | B122: 110 | C122: 马文英 | D122: 快速卸妆精华 | E122: 彩盒 | F122: 230ml | G122: PCS | H122: 1585 | I122: 0 | J122: 0 | L122: 1585 | M122: 1585 | N122: 0
A123: 122 | B123: 111 | C123: 马文英 | D123: 逆时空面胶 | E123: 彩盒 | F123: 230ml | G123: PCS | H123: 805 | I123: 0 | J123: 0 | L123: 805 | M123: 805 | N123: 0
A124: 123 | B124: 112 | C124: 马文英 | D124: 逆时空面霜 | E124: 彩盒 | F124: 230ml | G124: PCS | H124: 772 | I124: 0 | J124: 0 | L124: 772 | M124: 772 | N124: 0
A125: 124 | B125: 113 | C125: 马文英 | D125: 富氧离子水 | E125: 彩盒 | F125: 230ml | G125: PCS | H125: 1200 | I125: 0 | J125: 0 | L125: 1200 | M125: 1200 | N125: 0
A126: 125 | B126: 129 | C126: 马文英 | D126: 青春原液（烫银） | E126: 折断瓶 | F126: 5ml | G126: PCS | H126: 1238 | I126: 0 | J126: 0 | L126: 1238 | M126: 1238 | N126: 0
A127: 126 | B127: 130 | C127: 马文英 | D127: 青春原液（烫金） | E127: 折断瓶 | F127: 5ml | G127: PCS | H127: 2560 | I127: 0 | J127: 0 | L127: 2560 | M127: 2560 | N127: 0
A128: 127 | B128: 128 | C128: 马文英 | D128: 魅力调理霜（烫银） | E128: 折断瓶 | F128: 5g | G128: PCS | H128: 4460 | I128: 0 | J128: 0 | L128: 4460 | M128: 4460 | N128: 0
A129: 128 | B129: 107 | C129: 马文英 | D129: 体雕精油（烫金） | E129: 玻璃瓶 | F129: 8ml | G129: PCS | H129: 2480 | I129: 0 | J129: 0 | L129: 2480 | M129: 2480 | N129: 0
A130: 129 | B130: 108 | C130: 马文英 | D130: 体雕精油（烫银） | E130: 玻璃瓶 | F130: 8ml | G130: PCS | H130: 1500 | I130: 0 | J130: 0 | L130: 1500 | M130: 1500 | N130: 0
A131: 130 | B131: 139 | C131: 马文英 | D131: 通用折断瓶内塞 | F131: 5ml | G131: PCS | H131: 8000 | I131: 0 | J131: 0 | L131: 8000 | M131: 8000 | N131: 0
A132: 131 | B132: 137 | C132: 马文英 | D132: 白桶 | F132: 500g | G132: PCS | H132: 347 | I132: 0 | J132: 0 | L132: 347 | M132: 326 | N132: -21
A133: 132 | B133: 104 | C133: 马文英 | D133: 微小分子玻尿酸 | E133: 玻璃瓶 | F133: 5ml | G133: PCS | H133: 3620 | I133: 0 | J133: 0 | L133: 3620 | M133: 2998 | N133: =+M133-H133 -> -622
A134: 133 | B134: 105 | C134: 马文英 | D134: EGF修复因子 | E134: 玻璃瓶 | F134: 5ml | G134: PCS | H134: 1500 | I134: 0 | J134: 0 | L134: 1500 | M134: =+H134 -> 1500 | N134: 0
A135: 134 | B135: 92 | C135: 马文英 | D135: 逆时空面膜 | E135: 1号瓶 | F135: 200g | G135: PCS | H135: 58 | I135: 0 | J135: 0 | K135: 已打码 | L135: 58 | M135: 58 | N135: 0
A136: 135 | B136: 96 | C136: 马文英 | D136: 逆时空面膜 | E136: 2号瓶 | F136: 200g | G136: PCS | H136: 46 | I136: 0 | J136: 0 | K136: 已打码 | L136: 46 | M136: 46 | N136: 0
A137: 136 | B137: 100 | C137: 马文英 | D137: 逆时空面膜 | E137: 3号瓶 | F137: 200g | G137: PCS | H137: 56 | I137: 0 | J137: 0 | K137: 已打码 | L137: 56 | M137: 56 | N137: 0
A138: 137 | B138: 141 | C138: 马文英 | D138: 230ml说明书 | G138: PCS | H138: 7500 | I138: 0 | J138: 0 | L138: 7500 | M138: 7500 | N138: 0
A139: 138 | B139: 142 | C139: 马文英 | D139: 魅惑套说明书 | G139: PCS | H139: 700 | I139: 0 | J139: 0 | L139: 700 | M139: 700 | N139: 0
A140: 139 | B140: 143 | C140: 马文英 | D140: 水润滋养眼部套盒标（新） | G140: PCS | H140: 570 | I140: 0 | J140: 0 | L140: 570 | M140: 570 | N140: 0
A141: 140 | B141: 144 | C141: 马文英 | D141: 水润滋养眼部套盒标（旧） | G141: PCS | H141: 320 | I141: 0 | J141: 0 | L141: 320 | M141: 320 | N141: 0
A142: 141 | B142: 145 | C142: 马文英 | D142: 水玲珑媚眼套盒标（新） | G142: PCS | H142: 380 | I142: 0 | J142: 0 | L142: 380 | M142: 380 | N142: 0
A143: 142 | B143: 146 | C143: 马文英 | D143: 水玲珑媚眼套盒标（旧） | G143: PCS | H143: 333 | I143: 0 | J143: 0 | L143: 333 | M143: 333 | N143: 0
A144: 143 | B144: 90 | C144: 马文英 | D144: 逆时空面膜 | E144: 1号标签 | G144: PCS | H144: 840 | I144: 0 | J144: 0 | L144: 840 | M144: 840 | N144: 0
A145: 144 | B145: 94 | C145: 马文英 | D145: 逆时空面膜 | E145: 2号标签 | G145: PCS | H145: 660 | I145: 0 | J145: 0 | L145: 660 | M145: 660 | N145: 0
A146: 145 | B146: 98 | C146: 马文英 | D146: 逆时空面膜 | E146: 3号标签 | G146: PCS | H146: 540 | I146: 0 | J146: 0 | L146: 540 | M146: 540 | N146: 0
A147: 146 | B147: 101 | C147: 马文英 | D147: 逆时空面膜 | E147: 4号标签 | G147: PCS | H147: 545 | I147: 0 | J147: 0 | L147: 545 | M147: 545 | N147: 0
A148: 147 | B148: 147 | C148: 马文英 | D148: EGF修复因子套盒标 | G148: PCS | H148: 1043 | I148: 0 | J148: 0 | L148: 1043 | M148: 1043 | N148: 0
A149: 148 | B149: 148 | C149: 马文英 | D149: 干细胞原液套盒标 | G149: PCS | H149: 963 | I149: 0 | J149: 0 | L149: 963 | M149: 963 | N149: 0
A150: 149 | B150: 149 | C150: 马文英 | D150: 熊果苷肽套盒标 | G150: PCS | H150: 959 | I150: 0 | J150: 0 | L150: 959 | M150: 959 | N150: 0
A151: 150 | B151: 150 | C151: 马文英 | D151: 微小分子玻尿酸套盒标 | G151: PCS | H151: 920 | I151: 0 | J151: 0 | L151: 920 | M151: 920 | N151: 0
A152: 151 | B152: 88 | C152: 马文英 | D152: 水玲珑媚眼膜 | E152: 10标签 | G152: PCS | H152: 210 | I152: 0 | J152: 0 | L152: 210 | M152: 210 | N152: 0
A153: 152 | B153: 89 | C153: 马文英 | D153: 水润滋养眼膜 | E153: 10标签 | G153: PCS | H153: 188 | I153: 0 | J153: 0 | L153: 188 | M153: 188 | N153: 0
A154: 153 | B154: 151 | C154: 马文英 | D154: 魅力丰韵套名称标 | G154: PCS | H154: 1000 | I154: 0 | J154: 0 | L154: 1000 | M154: 1000 | N154: 0
A155: 154 | B155: 152 | C155: 马文英 | D155: 魅力纤腿套名称标 | G155: PCS | H155: 1000 | I155: 0 | J155: 0 | L155: 1000 | M155: 1000 | N155: 0
A156: 155 | B156: 153 | C156: 马文英 | D156: 蕴能姜油小标 | G156: PCS | H156: 1200 | I156: 0 | J156: 0 | L156: 1200 | M156: 1200 | N156: 0
A157: 156 | B157: 154 | C157: 马文英 | D157: 玫瑰精油小标 | G157: PCS | H157: 1030 | I157: 0 | J157: 0 | L157: 1030 | M157: 1030 | N157: 0
A158: 157 | B158: 155 | C158: 马文英 | D158: 蕴能精油小标 | G158: PCS | H158: 1030 | I158: 0 | J158: 0 | L158: 1030 | M158: 1030 | N158: 0
A159: 158 | B159: 156 | C159: 马文英 | D159: 魅力套说明书 | G159: PCS | H159: 540 | I159: 0 | J159: 0 | L159: 540 | M159: 540 | N159: 0
A160: 159 | B160: 157 | C160: 马文英 | D160: 眼部套说明书 | G160: PCS | H160: 798 | I160: 0 | J160: 0 | L160: 798 | M160: 798 | N160: 0
A161: 160 | B161: 158 | C161: 马文英 | D161: 魅力纤背套名称标 | G161: PCS | H161: 945 | I161: 0 | J161: 0 | L161: 945 | M161: 945 | N161: 0
A162: 161 | B162: 159 | C162: 马文英 | D162: 魅力提臀套名称标 | G162: PCS | H162: 1000 | I162: 0 | J162: 0 | L162: 1000 | M162: 1000 | N162: 0
A163: 162 | B163: 160 | C163: 马文英 | D163: 魅惑丰韵套名称标 | G163: PCS | H163: 960 | I163: 0 | J163: 0 | L163: 960 | M163: 960 | N163: 0
A164: 163 | B164: 161 | C164: 马文英 | D164: 魅惑纤腿套名称标 | G164: PCS | H164: 1000 | I164: 0 | J164: 0 | L164: 1000 | M164: 1000 | N164: 0
A165: 164 | B165: 162 | C165: 马文英 | D165: 水玲珑媚眼套名称标 | G165: PCS | H165: 910 | I165: 0 | J165: 0 | L165: 910 | M165: 910 | N165: =+M165-H165 -> 0
A166: 165 | B166: 163 | C166: 马文英 | D166: 水润滋养眼部套名称标 | G166: PCS | H166: 910 | I166: 0 | J166: 0 | L166: 910 | M166: =+H166 -> 910 | N166: 0
A167: 166 | B167: 164 | C167: 马文英 | D167: 水润滋养眼精华小标 | G167: PCS | H167: 1218 | I167: 0 | J167: 0 | L167: 1218 | M167: 1218 | N167: 0
A168: 167 | B168: 165 | C168: 马文英 | D168: 水润滋养舒缓水小标 | G168: PCS | H168: 1218 | I168: 0 | J168: 0 | L168: 1218 | M168: 1218 | N168: 0
A169: 168 | B169: 166 | C169: 马文英 | D169: 水润滋养卸妆液小标 | G169: PCS | H169: 1200 | I169: 0 | J169: 0 | L169: 1200 | M169: 1200 | N169: 0
A170: 169 | B170: 167 | C170: 马文英 | D170: 水润滋养眼霜小标 | G170: PCS | H170: 1260 | I170: 0 | J170: 0 | L170: 1260 | M170: 1260 | N170: 0
A171: 170 | B171: 168 | C171: 马文英 | D171: 魅力纤腰套名称标 | G171: PCS | H171: 800 | I171: 0 | J171: 0 | L171: 800 | M171: 800 | N171: 0
A172: 171 | B172: 169 | C172: 马文英 | D172: 魅力纤臂套名称标 | G172: PCS | H172: 1000 | I172: 0 | J172: 0 | L172: 1000 | M172: 1000 | N172: 0
A173: 172 | B173: 170 | C173: 马文英 | D173: 魅惑提臀套名称标 | G173: PCS | H173: 980 | I173: 0 | J173: 0 | L173: 980 | M173: 980 | N173: 0
A174: 173 | B174: 171 | C174: 马文英 | D174: 魅惑纤臂套名称标 | G174: PCS | H174: 975 | I174: 0 | J174: 0 | L174: 975 | M174: 975 | N174: 0
A175: 174 | B175: 172 | C175: 马文英 | D175: 魅惑纤腰套名称标 | G175: PCS | H175: 900 | I175: 0 | J175: 0 | L175: 900 | M175: 900 | N175: 0
A176: 175 | B176: 173 | C176: 马文英 | D176: 魅惑纤背套名称标 | G176: PCS | H176: 980 | I176: 0 | J176: 0 | L176: 980 | M176: 980 | N176: 0
A177: 176 | B177: 174 | C177: 马文英 | D177: 魅力纤腿套套盒标 | G177: PCS | H177: 1020 | I177: 0 | J177: 0 | L177: 1020 | M177: 1020 | N177: 0
A178: 177 | B178: 175 | C178: 马文英 | D178: 魅惑提臀套盒标 | G178: PCS | H178: 970 | I178: 0 | J178: 0 | L178: 970 | M178: 970 | N178: 0
A179: 178 | B179: 176 | C179: 马文英 | D179: 魅惑丰韵套盒标 | G179: PCS | H179: 945 | I179: 0 | J179: 0 | L179: 945 | M179: 945 | N179: 0
A180: 179 | B180: 177 | C180: 马文英 | D180: 魅惑纤臂套盒标 | G180: PCS | H180: 975 | I180: 0 | J180: 0 | L180: 975 | M180: 975 | N180: 0
A181: 180 | B181: 178 | C181: 马文英 | D181: 魅惑纤腿套盒标 | G181: PCS | H181: 1000 | I181: 0 | J181: 0 | L181: 1000 | M181: 1000 | N181: 0
A182: 181 | B182: 179 | C182: 马文英 | D182: 魅惑纤腰套盒标 | G182: PCS | H182: 900 | I182: 0 | J182: 0 | L182: 900 | M182: 900 | N182: 0
A183: 182 | B183: 180 | C183: 马文英 | D183: 魅力纤腰套盒标 | G183: PCS | H183: 805 | I183: 0 | J183: 0 | L183: 805 | M183: 805 | N183: 0
A184: 183 | B184: 181 | C184: 马文英 | D184: 魅力提臀套盒标 | G184: PCS | H184: 1000 | I184: 0 | J184: 0 | L184: 1000 | M184: 1000 | N184: 0
A185: 184 | B185: 182 | C185: 马文英 | D185: 魅惑纤背套盒标 | G185: PCS | H185: 975 | I185: 0 | J185: 0 | L185: 975 | M185: 975 | N185: 0
A186: 185 | B186: 183 | C186: 马文英 | D186: 魅力丰韵套盒标 | G186: PCS | H186: 870 | I186: 0 | J186: 0 | L186: 870 | M186: 870 | N186: 0
A187: 186 | B187: 184 | C187: 马文英 | D187: 魅力纤背套盒标 | G187: PCS | H187: 975 | I187: 0 | J187: 0 | L187: 975 | M187: 975 | N187: 0
A188: 187 | B188: 185 | C188: 马文英 | D188: 魅力纤臂套盒标 | G188: PCS | H188: 1000 | I188: 0 | J188: 0 | L188: 1000 | M188: 1000 | N188: 0
A189: 188 | B189: 93 | C189: 马文英 | D189: 蕴能膜 | E189: 20标签 | G189: PCS | H189: 250 | I189: 0 | J189: 0 | L189: 250 | M189: 250 | N189: 0
A190: 189 | B190: 97 | C190: 马文英 | D190: 蕴能膜 | E190: 30标签 | G190: PCS | H190: 665 | I190: 0 | J190: 0 | L190: 665 | M190: 665 | N190: 0
A191: 190 | B191: 140 | C191: 马文英 | D191: 银色铝盖 | F191: 5ml | G191: PCS | H191: 6000 | I191: 0 | J191: 0 | L191: 6000 | M191: 6000 | N191: 0
A192: 191 | B192: 106 | C192: 马文英 | D192: 干细胞原液 | E192: 玻璃瓶 | F192: 5ml | G192: PCS | H192: 3000 | I192: 0 | J192: 0 | L192: 3000 | M192: 3000 | N192: 0
A193: 192 | B193: 131 | C193: 马文英 | D193: 精油瓶(新） | F193: 10ml | G193: PCS | H193: 224 | I193: 0 | J193: 0 | L193: 224 | M193: 220 | N193: -4
A194: 193 | B194: 132 | C194: 马文英 | D194: 精油瓶（旧） | F194: 10ml | G194: PCS | H194: 150 | I194: 0 | J194: 0 | L194: 150 | M194: 142 | N194: -8
A195: 194 | B195: 138 | C195: 马文英 | D195: 精油瓶 | F195: 50Ml | G195: PCS | H195: 350 | I195: 0 | J195: 0 | L195: 350 | M195: =+H195 -> 350 | N195: 0
A196: 195 | B196: 103 | C196: 马文英 | D196: 玫瑰精油 | E196: 安瓶 | F196: 5g | G196: PCS | H196: 760 | I196: 0 | J196: 0 | L196: 760 | M196: 640 | N196: -120
A197: 196 | B197: 127 | C197: 马文英 | D197: 塑型燃脂膏 | E197: 圆桶 | F197: 5kg | G197: PCS | H197: 0 | I197: 0 | J197: 0 | L197: 0 | M197: =+H197 -> 0 | N197: =+M197-H197 -> 0
A198: 197 | B198: 116 | C198: 马文英 | D198: 塑型燃脂膏 | E198: 收缩膜 | F198: 5kg | G198: PCS | H198: 1000 | I198: 0 | J198: 0 | L198: 1000 | M198: =+H198 -> 1000 | N198: 0
A199: 198 | B199: 190 | C199: 昇凰 | D199: 泌爱梦幻源液 | E199: 瓶子 | F199: 10ml | H199: 0 | I199: 0 | J199: 500 | L199: 500 | M199: 0 | N199: 0
A200: 199 | B200: 189 | C200: 昇凰 | D200: 泌爱梦幻源液 | E200: 盖子 | F200: 10ml | H200: 0 | I200: 0 | J200: 500 | L200: 500 | M200: 0 | N200: 0
... 304 more rows

Sheet 广州锦盛10月份包材仓电子帐 (2) (hidden)
H2: 物料编号 | I2: 存储位置
A4: 苏杜全 | C4: 敖家睿 | D4: EGF多肽修护原液套 | E4: 3件套 | F4: 套盒 | G4: 3件套 | J4: =O4+K4-L4 -> 0 | K4: =Q4+U4+Y4+AC4+AG4+AK4+AO4+AS4+AW4+BA4+BE4+BI4+BM4+BQ4+BU4+BY4+CC4+CG4+CK4+CO4+CS4+CW4+DA4+DE4+DI4+DM4+DQ4+DU4+DY4+EC4+EG4 -> 0 | L4: =S4+W4+AA4+AE4+AI4+AM4+AQ4+AU4+AY4+BC4+BG4+BK4+BO4+BS4+BW4+CA4+CE4+CI4+CM4+CQ4+CU4+CY4+DC4+DG4+DK4+DO4+DS4+DW4+EA4+EE4+EI4 -> 0 | M4: PCS
A5: 苏杜全 | C5: 敖家睿 | D5: EGF多肽修护原液套 | E5: 3ml | F5: 支 | G5: 3ml | J5: 0 | K5: 0 | L5: 0 | M5: PCS
A6: 苏杜全 | C6: 敖家睿 | D6: EGF多肽修护原液套 | E6: 3ml | F6: 喇叭头 | G6: 3ml | J6: 0 | K6: 0 | L6: 0 | M6: PCS
A7: 苏杜全 | C7: 敖家睿 | D7: EGF多肽修护原液套 | E7: 3ml | F7: 白色植绒吸塑 | G7: 3ml | J7: 0 | K7: 0 | L7: 0 | M7: PCS
A8: 苏杜全 | C8: 敖家睿 | D8: EGF多肽修护原液套 | E8: 3ml | F8: 内托 | G8: 3ml | J8: 0 | K8: 0 | L8: 0 | M8: PCS
A9: 苏杜全 | C9: 敖家睿 | D9: EGF多肽修护原液套 | E9: 3ml | F9: 彩盒 | G9: 3ml | J9: 0 | K9: 0 | L9: 0 | M9: PCS
A10: 苏杜全 | C10: 敖家睿 | D10: 多肽修护原液 | E10: 3ml | F10: 安瓶 | G10: 3ml | J10: 0 | K10: 0 | L10: 0 | M10: PCS
A11: 苏杜全 | C11: 敖家睿 | D11: 多肽修护原液 | E11: 3ml | F11: 白色内盖 | G11: 3ml | J11: 0 | K11: 0 | L11: 0 | M11: PCS
A12: 苏杜全 | C12: 敖家睿 | D12: 多肽修护原液 | E12: 3ml | F12: 白色铝盖 | G12: 3ml | J12: 0 | K12: 0 | L12: 0 | M12: PCS
A13: 杨克江 | C13: 宝相花 | D13: 77号空白纸箱 | E13: 77# | F13: 专用纸箱 | G13: 77# | J13: 0 | K13: 0 | L13: 0 | M13: PCS | O13: 0
A14: 杨克江 | C14: 宝相花 | D14: 78号空白纸箱 | E14: 78# | F14: 专用纸箱 | G14: 78# | J14: 0 | K14: 0 | L14: 0 | M14: PCS | O14: 0
A15: 杨克江 | C15: 宝相花 | D15: 魅力女人套 | E15: 24件/套 | F15: 套盒 | G15: 24件/套 | J15: 0 | K15: 0 | L15: 0 | M15: PCS
A16: 杨克江 | C16: 宝相花 | D16: 魅力女人套 | E16: 24件/套 | F16: 说明书 | J16: 0 | K16: 0 | L16: 0 | M16: PCS | O16: 0
A17: 杨克江 | C17: 宝相花 | D17: 魅力女人套 | E17: 24件/套 | F17: 收缩膜 | J17: 0 | K17: 0 | L17: 0 | M17: PCS | O17: 0
A18: 杨克江 | C18: 宝相花 | D18: 明媚亮眼套 | E18: 41件/套 | F18: 套盒 | G18: 41件/套 | J18: 0 | K18: 0 | L18: 0 | M18: PCS
A19: 杨克江 | C19: 宝相花 | D19: 明媚亮眼套 | E19: 41件/套 | F19: 说明书 | J19: 0 | K19: 0 | L19: 0 | M19: PCS | O19: 0
A20: 杨克江 | C20: 宝相花 | D20: 明媚亮眼套 | E20: 41件/套 | F20: 收缩膜 | J20: 0 | K20: 0 | L20: 0 | M20: PCS | O20: 0
A21: 杨克江 | C21: 宝相花 | D21: 柔肤按摩膏 | E21: 50ML | F21: 红色玻璃瓶 | G21: 50ML | J21: 0 | K21: 0 | L21: 0 | M21: PCS | O21: 0
A22: 杨克江 | C22: 宝相花 | D22: 柔肤按摩膏、柔肤水洗膜、柔肤精华霜、舒活多肽眼霜 | E22: 50ML | F22: 手拉垫片 | G22: 50ML | J22: 0 | K22: 0 | L22: 0 | M22: PCS | O22: 0
A23: 杨克江 | C23: 宝相花 | D23: 柔肤按摩膏、柔肤水洗膜、柔肤精华霜、舒活多肽眼霜 | E23: 50ML | F23: 金色外盖 | G23: 50ML | J23: 0 | K23: 0 | L23: 0 | M23: PCS | O23: 0
A24: 杨克江 | C24: 宝相花 | D24: 柔肤精华乳 | E24: 3ML | F24: 折断瓶 | G24: 3ML | J24: 0 | K24: 0 | L24: 0 | M24: PCS | O24: 0
A25: 杨克江 | C25: 宝相花 | D25: 柔肤精华霜 | E25: 30G | F25: 红色玻璃瓶 | G25: 30G | J25: 0 | K25: 0 | L25: 0 | M25: PCS | O25: 0
A26: 杨克江 | C26: 宝相花 | D26: 柔肤精华素 | E26: 3ML | F26: 折断瓶 | G26: 3ML | J26: 0 | K26: 0 | L26: 0 | M26: PCS | O26: 0
A27: 杨克江 | C27: 宝相花 | D27: 柔肤精华素、柔肤精华乳、舒活按摩精华、舒活滋养啫喱、舒活多肽精华 | E27: 3ML | F27: 内塞 | G27: 3ML | J27: 22850 | K27: 0 | L27: 0 | M27: PCS | O27: 22850
A28: 杨克江 | C28: 宝相花 | D28: 柔肤精华素、柔肤精华乳、舒活按摩精华、舒活滋养啫喱、舒活多肽精华 | E28: 3ML | F28: 塞钉 | G28: 3ML | J28: 22850 | K28: 0 | L28: 0 | M28: PCS | O28: 22850
A29: 杨克江 | C29: 宝相花 | D29: 柔肤爽肤水 | E29: 100ML | F29: 红色玻璃瓶 | G29: 100ML | J29: 0 | K29: 0 | L29: 0 | M29: PCS | O29: 0
A30: 杨克江 | C30: 宝相花 | D30: 柔肤爽肤水 | E30: 100ML | F30: 喷雾头 | G30: 100ML | J30: 0 | K30: 0 | L30: 0 | M30: PCS | O30: 0
A31: 杨克江 | C31: 宝相花 | D31: 柔肤爽肤水 | E31: 100ML | F31: 金色外盖 | G31: 100ML | J31: 0 | K31: 0 | L31: 0 | M31: PCS | O31: 0
A32: 杨克江 | C32: 宝相花 | D32: 柔肤水洗膜 | E32: 50G | F32: 红色玻璃瓶 | G32: 50G | J32: 0 | K32: 0 | L32: 0 | M32: PCS | O32: 0
A33: 杨克江 | C33: 宝相花 | D33: 舒活按摩精华 | E33: 3ML | F33: 折断瓶 | G33: 3ML | J33: 0 | K33: 0 | L33: 0 | M33: PCS | O33: 0
A34: 杨克江 | C34: 宝相花 | D34: 舒活多肽精华 | E34: 3ML | F34: 折断瓶 | G34: 3ML | J34: 0 | K34: 0 | L34: 0 | M34: PCS | O34: 0
A35: 杨克江 | C35: 宝相花 | D35: 舒活多肽眼膜 | E35: 12ML*10片/盒 | F35: 两层眼膜贴 | G35: 12ML*10片/盒 | J35: 0 | K35: 0 | L35: 0 | M35: PCS | O35: 0
A36: 杨克江 | C36: 宝相花 | D36: 舒活多肽眼膜 | E36: 12ML*10片/盒 | F36: 银色铝箔袋 | G36: 12ML*10片/盒 | J36: 5000 | K36: 0 | L36: 0 | M36: PCS | O36: 5000
A37: 杨克江 | C37: 宝相花 | D37: 舒活多肽眼膜 | E37: 12ML*10片/盒 | F37: 彩盒 | G37: 12ML*10片/盒 | J37: 0 | K37: 0 | L37: 0 | M37: PCS | O37: 0
A38: 杨克江 | C38: 宝相花 | D38: 舒活多肽眼霜 | E38: 30G | F38: 红色玻璃瓶 | G38: 30G | J38: 0 | K38: 0 | L38: 0 | M38: PCS | O38: 0
A39: 杨克江 | C39: 宝相花 | D39: 舒活滋养啫喱 | E39: 3ML | F39: 折断瓶 | G39: 3ML | J39: 0 | K39: 0 | L39: 0 | M39: PCS | O39: 0
A40: 黄细娇 | C40: 本厂 | E40: 500ML | F40: 外罩 | G40: 500ML | J40: -252 | K40: 0 | L40: 0 | M40: PCS | O40: -252
A45: 黄细娇 | C45: 本厂 | D45: 白色塑瓶 | E45: 500ML | F45: 塑封膜 | G45: 500ML | J45: 10000 | K45: 0 | L45: 0 | M45: PCS | O45: 10000
A46: 黄细娇 | C46: 本厂 | D46: 共用透明胶 | E46: 1KG | F46: 透明胶 | G46: 1kg | J46: -330 | K46: 0 | L46: 330 | M46: PCS | BV46: 0002969 | BW46: 300 | CD46: 0003634 | CE46: 30
A47: 黄细娇 | C47: 本厂 | D47: 泥 灸 | E47: 100g | F47: PP圆形塑料盒子 | G47: 100g | J47: -300 | K47: 0 | L47: 0 | M47: PCS | O47: -300
A48: 黄细娇 | C48: 本厂 | D48: 透明塑瓶 | E48: 500ML | F48: 塑封膜 | G48: 500ML | J48: 9400 | K48: 0 | L48: 0 | M48: PCS | O48: 9400
A49: 黄细娇 | C49: 本厂 | D49: 香芬洋甘菊静肤冰晶 | E49: / | F49: 共用标签 | G49: / | J49: -500 | K49: 0 | L49: 500 | M49: PCS | BV49: 0002964 | BW49: 500
A50: 黄细娇 | C50: 本厂 | D50: 新维素洋甘菊静肤花水 | E50: / | F50: 共用标签 | G50: / | J50: -740 | K50: 0 | L50: 740 | M50: PCS | BV50: 0002969 | BW50: 500 | CH50: 0003005 | CI50: 200 | CL50: 0003009 | CM50: 40
A51: 黄细娇 | C51: 本厂 | D51: 香芬-玫瑰活颜洗面奶 | E51: 1kg | F51: 透明袋 | G51: 1kg | J51: 7100 | K51: 0 | L51: 800 | M51: PCS | O51: 7900 | BV51: 0002969 | BW51: =300+500 -> 800
A52: 黄细娇 | C52: 本厂 | D52: 香芬-玫瑰活颜纯露 | E52: / | F52: 共用标签 | G52: / | J52: 0 | K52: 0 | L52: 0 | M52: PCS
A53: 黄细娇 | C53: 本厂 | D53: 香芬-玫瑰活颜水洗膜 | E53: / | F53: 共用标签 | G53: / | J53: 0 | K53: 0 | L53: 0 | M53: PCS
A54: 黄细娇 | C54: 本厂 | D54: 香芬-玫瑰活颜按摩膏 | E54: / | F54: 共用标签 | G54: / | J54: 0 | K54: 0 | L54: 0 | M54: PCS
A55: 黄细娇 | C55: 本厂 | D55: 香芬-玫瑰活颜冰晶 | E55: / | F55: 共用标签 | G55: / | J55: 0 | K55: 0 | L55: 0 | M55: PCS
A56: 黄细娇 | C56: 本厂 | D56: 香芬-玫瑰活颜乳液 | E56: / | F56: 共用标签 | G56: / | J56: 0 | K56: 0 | L56: 0 | M56: PCS
A57: 黄细娇 | C57: 本厂 | D57: 香芬-玫瑰活颜霜 | E57: / | F57: 共用标签 | G57: / | J57: 0 | K57: 0 | L57: 0 | M57: PCS
A58: 黄细娇 | C58: 本厂 | D58: 香芬-洋甘菊静肤洗面奶 | E58: / | F58: 共用标签 | G58: / | J58: 0 | K58: 0 | L58: 0 | M58: PCS
A59: 黄细娇 | C59: 本厂 | D59: 香芬-洋甘菊静肤纯露 | E59: / | F59: 共用标签 | G59: / | J59: 0 | K59: 0 | L59: 0 | M59: PCS
A60: 黄细娇 | C60: 本厂 | D60: 香芬-洋甘菊静肤水洗膜 | E60: / | F60: 共用标签 | G60: / | J60: 0 | K60: 0 | L60: 0 | M60: PCS
A61: 黄细娇 | C61: 本厂 | D61: 香芬-洋甘菊静肤按摩膏 | E61: / | F61: 共用标签 | G61: / | J61: 0 | K61: 0 | L61: 0 | M61: PCS
A62: 黄细娇 | C62: 本厂 | D62: 香芬-洋甘菊静肤冰晶 | E62: / | F62: 共用标签 | G62: / | J62: 0 | K62: 0 | L62: 0 | M62: PCS
A63: 黄细娇 | C63: 本厂 | D63: 香芬-洋甘菊静肤乳液 | E63: / | F63: 共用标签 | G63: / | J63: 0 | K63: 0 | L63: 0 | M63: PCS
A64: 黄细娇 | C64: 本厂 | D64: 香芬-洋甘菊静肤霜 | E64: / | F64: 共用标签 | G64: / | J64: 0 | K64: 0 | L64: 0 | M64: PCS
A65: 黄细娇 | C65: 本厂 | D65: 维他命-补水保湿洗面奶 | E65: / | F65: 共用标签 | G65: / | J65: 0 | K65: 0 | L65: 0 | M65: PCS
A66: 黄细娇 | C66: 本厂 | D66: 维他命-VC营养水 | E66: / | F66: 共用标签 | G66: / | J66: 0 | K66: 0 | L66: 0 | M66: PCS
A67: 黄细娇 | C67: 本厂 | D67: 维他命-去角质啫喱 | E67: / | F67: 共用标签 | G67: / | J67: 0 | K67: 0 | L67: 0 | M67: PCS
A68: 黄细娇 | C68: 本厂 | D68: 维他命-柔滑按摩膏 | E68: / | F68: 共用标签 | G68: / | J68: =O68+K68-L68 -> 0 | K68: =Q68+U68+Y68+AC68+AG68+AK68+AO68+AS68+AW68+BA68+BE68+BI68+BM68+BQ68+BU68+BY68+CC68+CG68+CK68+CO68+CS68+CW68+DA68+DE68+DI68+DM68+DQ68+DU68+DY68+EC68+EG68 -> 0 | L68: =S68+W68+AA68+AE68+AI68+AM68+AQ68+AU68+AY68+BC68+BG68+BK68+BO68+BS68+BW68+CA68+CE68+CI68+CM68+CQ68+CU68+CY68+DC68+DG68+DK68+DO68+DS68+DW68+EA68+EE68+EI68 -> 0 | M68: PCS
A69: 黄细娇 | C69: 本厂 | D69: 维他命-冰泉水洗膜 | E69: / | F69: 共用标签 | G69: / | J69: 0 | K69: 0 | L69: 0 | M69: PCS
A70: 黄细娇 | C70: 本厂 | D70: 维他命-补水保湿精华素 | E70: / | F70: 共用标签 | G70: / | J70: 0 | K70: 0 | L70: 0 | M70: PCS
A71: 黄细娇 | C71: 本厂 | D71: 维他命-补水保湿精华乳 | E71: / | F71: 共用标签 | G71: / | J71: 0 | K71: 0 | L71: 0 | M71: PCS
A73: 黄细娇 | C73: 本厂 | D73: 维他命-补水保湿按摩膏 | E73: / | F73: 共用标签 | G73: / | J73: 0 | K73: 0 | L73: 0 | M73: PCS
A74: 黄细娇 | C74: 本厂 | D74: 新维素-清爽洁面露 | E74: / | F74: 共用标签 | G74: / | J74: 0 | K74: 0 | L74: 0 | M74: PCS
A75: 黄细娇 | C75: 本厂 | D75: 新维素-玫瑰营养水 | E75: / | F75: 共用标签 | G75: / | J75: 0 | K75: 0 | L75: 0 | M75: PCS
A76: 黄细娇 | C76: 本厂 | D76: 新维素洋-甘菊静肤花水 | E76: / | F76: 共用标签 | G76: / | J76: 0 | K76: 0 | L76: 0 | M76: PCS
A77: 黄细娇 | C77: 本厂 | D77: 新维素-莹润水洗膜 | E77: / | F77: 共用标签 | G77: / | J77: 0 | K77: 0 | L77: 0 | M77: PCS
A78: 黄细娇 | C78: 本厂 | D78: 新维素-水润按摩膏 | E78: / | F78: 共用标签 | G78: / | J78: 0 | K78: 0 | L78: 0 | M78: PCS
A79: 黄细娇 | C79: 本厂 | D79: 新维素-柔滑按摩膏啫喱 | E79: / | F79: 共用标签 | G79: / | J79: 0 | K79: 0 | L79: 0 | M79: PCS
A80: 黄细娇 | C80: 本厂 | D80: 新维素-润肤水晶面膜 | E80: / | F80: 共用标签 | G80: / | J80: 0 | K80: 0 | L80: 0 | M80: PCS
A81: 黄细娇 | C81: 本厂 | D81: 新维素-莹润滋养霜 | E81: / | F81: 共用标签 | G81: / | J81: 0 | K81: 0 | L81: 0 | M81: PCS
A83: 黄细娇 | C83: 本厂 | D83: 功效-眼霜 | E83: / | F83: 共用标签 | G83: / | J83: 0 | K83: 0 | L83: 0 | M83: PCS
A84: 黄细娇 | C84: 本厂 | D84: 功效-眼啫喱 | E84: / | F84: 共用标签 | G84: / | J84: 0 | K84: 0 | L84: 0 | M84: PCS
A85: 黄细娇 | C85: 本厂 | D85: 功效-出水霜 | E85: / | F85: 共用标签 | G85: / | J85: 0 | K85: 0 | L85: 0 | M85: PCS
A86: 黄细娇 | C86: 本厂 | D86: 功效-隔离粉底乳 | E86: / | F86: 共用标签 | G86: / | J86: 0 | K86: 0 | L86: 0 | M86: PCS
A87: 黄细娇 | D87: 功效-补水霜 | E87: / | F87: 共用标签 | G87: / | J87: 0 | K87: 0 | L87: 0 | M87: PCS
A88: 黄细娇 | C88: 本厂 | D88: 特效-金粉眼霜 | E88: / | F88: 共用标签 | J88: 0 | K88: 0 | L88: 0 | M88: PCS
A89: 黄细娇 | C89: 本厂 | F89: 透明袋 | G89: 5KG | J89: 5000 | K89: 0 | L89: 0 | M89: PCS | O89: 5000
A90: 黄细娇 | C90: 本厂 | F90: 半透明袋（乳化） | G90: 110*110 | J90: 1070 | K90: 0 | L90: 0 | M90: PCS | O90: 1070
A91: 黄细娇 | C91: 本厂 | F91: 半透明袋（乳化） | G91: 70*110 | J91: 1050 | K91: 0 | L91: 0 | M91: PCS | O91: 1050
A92: 黄细娇 | C92: 本厂 | E92: 500ML | F92: 白色塑瓶 | G92: 500ML | J92: -552 | K92: 0 | L92: 0 | M92: PCS | O92: -552
A93: 黄细娇 | C93: 本厂 | E93: 500ML | F93: 压嘴泵头 | G93: 500ML | J93: 2908 | K93: 0 | L93: 0 | M93: PCS | O93: 2908
A94: 黄细娇 | C94: 本厂 | E94: 500ML | F94: 透明塑瓶 | G94: 500ML | J94: 2886 | K94: 0 | L94: 0 | M94: PCS | O94: 2886
A95: 黄细娇 | C95: 本厂 | F95: 空白小纸箱 | J95: 0 | K95: 0 | L95: 0 | M95: PCS | O95: 0
A96: 黄细娇 | C96: 本厂 | F96: 纸箱 | G96: 24# | J96: 0 | K96: 0 | L96: 0 | M96: PCS | O96: 0
A97: 黄细娇 | C97: 本厂 | F97: 装箱单 | J97: 5000 | K97: 0 | L97: 0 | M97: PCS | O97: 5000
A98: 黄细娇 | C98: 本厂 | F98: 装箱标签 | J98: 5000 | K98: 0 | L98: 0 | M98: PCS | O98: 5000
A99: 杨克江 | C99: 陈义繁 | D99: 涂抹式玻尿酸水乳精华 | E99: 10ML | F99: 试管 | G99: 10ML | J99: 0 | K99: 0 | L99: 0 | M99: PCS | N99: 已盘点 | O99: 0
A100: 杨克江 | C100: 陈义繁 | D100: 涂抹式玻尿酸水乳精华 | E100: 10ML | F100: 推杆 | G100: 10ML | J100: 0 | K100: 0 | L100: 0 | M100: PCS | N100: 已盘点 | O100: 0
A101: 杨克江 | C101: 陈义繁 | D101: 涂抹式玻尿酸水乳精华 | E101: 10ML | F101: 内塞 | G101: 10ML | J101: 0 | K101: 0 | L101: 77 | M101: PCS | N101: 已盘点 | O101: 77 | S101: 77
A102: 杨克江 | C102: 陈义繁 | D102: 涂抹式玻尿酸水乳精华 | E102: 10ML | F102: 银色铝箔袋 | G102: 10ML | J102: 40100 | K102: 40100 | L102: 382 | M102: PCS | N102: 已盘点 | O102: 382 | Q102: 40100 | S102: 382
A103: 杨克江 | C103: 陈义繁 | D103: 涂抹式玻尿酸水乳精华 | E103: 10ML | F103: 花盒 | G103: 10ML | J103: 41300 | K103: 41300 | L103: 627 | M103: PCS | N103: 已盘点 | O103: 627 | Q103: 41300 | S103: 627
A104: 杨克江 | C104: 陈义繁 | D104: 涂抹式玻尿酸水乳精华 | E104: 10ML | F104: 塑封膜（全封的） | J104: 0 | K104: 0 | L104: 0 | M104: PCS | N104: 已盘点 | O104: 0
A105: 林静 | C105: 创美 | D105: 冰晶面膜 | E105: 25G | F105: A384面膜纸 | G105: 25G | J105: 0 | K105: 0 | L105: 0 | M105: PCS | O105: 0
A106: 林静 | C106: 创美 | D106: 冰晶面膜 | E106: 25G | F106: 印刷铝箔袋 | G106: 25G | J106: 0 | K106: 0 | L106: 0 | M106: PCS | O106: 0
A107: 林静 | C107: 创美 | D107: 冰晶面膜 | E107: 25G | F107: 彩盒 | G107: 10片/盒 | J107: 0 | K107: 0 | L107: 0 | M107: PCS | O107: 0
A108: 林静 | C108: 创美 | D108: 拉皮粉 | E108: 5ml | F108: 安瓶 | G108: 3G | J108: 10000 | K108: 0 | L108: 0 | M108: PCS | O108: 10000
A109: 林静 | C109: 创美 | D109: 拉皮粉、拉皮水 | E109: 5ml | F109: 白色内塞 | G109: 3G | J109: 15000 | K109: 0 | L109: 0 | M109: PCS | O109: 15000
A110: 林静 | C110: 创美 | D110: 拉皮粉、拉皮水 | E110: 5ml | F110: 白色铝盖 | G110: 3G | J110: 15000 | K110: 0 | L110: 0 | M110: PCS | O110: 15000
A111: 林静 | C111: 创美 | D111: 拉皮水 | E111: 10ML | F111: 安瓶 | G111: 10ML | J111: 5000 | K111: 0 | L111: 0 | M111: PCS | O111: 5000
A113: 林静 | C113: 创美 | D113: 媚眼蚕丝眼膜 | E113: 10G | F113: 3层剪刀手眼膜纸 | G113: 左右1片/对 | J113: 0 | K113: 0 | L113: 0 | M113: PCS | O113: 0
A115: 林静 | C115: 创美 | D115: 疏经亮眼功效套 | E115: 38件/套 | F115: 套盒 | G115: 38件/套 | J115: 0 | K115: 0 | L115: 0 | M115: PCS | O115: 0
A117: 林静 | C117: 创美 | D117: 疏经亮眼功效套 | E117: 38件/套 | F117: 塑封膜 | J117: 0 | K117: 0 | L117: 0 | M117: PCS | O117: 0
A118: 林静 | C118: 创美 | D118: 疏经亮眼功效套 | E118: 38件/套 | F118: 专用纸箱 | J118: 100 | K118: 0 | L118: 0 | M118: PCS | O118: 100
A119: 林静 | C119: 创美 | D119: 眼部紧致舒缓精华 | E119: 30ml | F119: 塑瓶 | G119: 30ml | J119: 0 | K119: 0 | L119: 0 | M119: PCS | O119: 0
A120: 林静 | C120: 创美 | D120: 眼部紧致舒缓精华 | E120: 30ml | F120: 白色压咀 | G120: 30ml | J120: 0 | K120: 0 | L120: 0 | M120: PCS | O120: 0
A121: 林静 | C121: 创美 | D121: 眼部紧致舒缓精华 | E121: 30ml | F121: 透明外盖 | G121: 30ml | J121: 0 | K121: 0 | L121: 0 | M121: PCS | O121: 0
A122: 林静 | C122: 创美 | D122: 眼部紧致舒缓精华 | E122: 3ml | F122: 折断瓶 | G122: 3ml | J122: 0 | K122: 0 | L122: 0 | M122: PCS | O122: 0
A123: 林静 | C123: 创美 | D123: 眼部紧致舒缓精华、眼部水亮明眸精华乳 | E123: 3ml | F123: 内塞 | G123: 3ml | J123: 0 | K123: 0 | L123: 0 | M123: PCS | O123: 0
A124: 林静 | C124: 创美 | D124: 眼部紧致舒缓精华、眼部水亮明眸精华乳 | E124: 3ml | F124: 塞钉 | G124: 3ml | J124: 0 | K124: 0 | L124: 0 | M124: PCS | O124: 0
A125: 林静 | C125: 创美 | D125: 眼部水亮明眸精华乳 | E125: 3ml | F125: 折断瓶 | G125: 3ml | J125: 0 | K125: 0 | L125: 0 | M125: PCS | O125: 0
A126: 林静 | C126: 创美 | D126: 眼部提升紧致凝胶 | E126: 30ml | F126: 塑瓶 | G126: 30ml | J126: 0 | K126: 0 | L126: 0 | M126: PCS | O126: 0
A127: 林静 | C127: 创美 | D127: 眼部提升紧致凝胶 | E127: 30ml | F127: 亮银压咀 | G127: 30ml | J127: 0 | K127: 0 | L127: 0 | M127: PCS | O127: 0
A128: 林静 | C128: 创美 | D128: 眼部提升紧致凝胶 | E128: 30ml | F128: 透明外盖 | G128: 30ml | J128: 0 | K128: 0 | L128: 0 | M128: PCS | O128: 0
A129: 林静 | C129: 创美 | D129: 钻石面膜套 | E129: 25件/套 | F129: 套盒 | G129: 25件/套 | J129: 0 | K129: 0 | L129: 0 | M129: PCS | O129: 0
A130: 林静 | C130: 创美 | D130: 钻石面膜套 | E130: 25件/套 | F130: 说明书 | G130: 25件/套 | J130: 0 | K130: 0 | L130: 0 | M130: PCS | O130: 0
A131: 林静 | C131: 创美 | D131: 钻石面膜套 | E131: 25件/套 | F131: 塑封膜 | J131: 0 | K131: 0 | L131: 0 | M131: PCS | O131: 0
A132: 林静 | C132: 创美 | D132: 钻石面膜套 | E132: 25件/套 | F132: 纸箱 | J132: =O132+K132-L132 -> 0 | K132: =Q132+U132+Y132+AC132+AG132+AK132+AO132+AS132+AW132+BA132+BE132+BI132+BM132+BQ132+BU132+BY132+CC132+CG132+CK132+CO132+CS132+CW132+DA132+DE132+DI132+DM132+DQ132+DU132+DY132+EC132+EG132 -> 0 | L132: =S132+W132+AA132+AE132+AI132+AM132+AQ132+AU132+AY132+BC132+BG132+BK132+BO132+BS132+BW132+CA132+CE132+CI132+CM132+CQ132+CU132+CY132+DC132+DG132+DK132+DO132+DS132+DW132+EA132+EE132+EI132 -> 0 | M132: PCS | O132: 0
A133: 曾小根 | C133: 高礼宾 | D133: 花库-卿本佳人 | E133: 61件/套 | F133: 套盒 | G133: 26件/套 | J133: =O133+K133-L133 -> 0 | K133: =Q133+U133+Y133+AC133+AG133+AK133+AO133+AS133+AW133+BA133+BE133+BI133+BM133+BQ133+BU133+BY133+CC133+CG133+CK133+CO133+CS133+CW133+DA133+DE133+DI133+DM133+DQ133+DU133+DY133+EC133+EG133 -> 0 | L133: =S133+W133+AA133+AE133+AI133+AM133+AQ133+AU133+AY133+BC133+BG133+BK133+BO133+BS133+BW133+CA133+CE133+CI133+CM133+CQ133+CU133+CY133+DC133+DG133+DK133+DO133+DS133+DW133+EA133+EE133+EI133 -> 0 | M133: PCS
A134: 曾小根 | C134: 高礼宾 | D134: 花库-卿本佳人 | E134: 61件/套 | F134: 套盒标 | G134: 26件/套 | J134: =O134+K134-L134 -> 0 | K134: =Q134+U134+Y134+AC134+AG134+AK134+AO134+AS134+AW134+BA134+BE134+BI134+BM134+BQ134+BU134+BY134+CC134+CG134+CK134+CO134+CS134+CW134+DA134+DE134+DI134+DM134+DQ134+DU134+DY134+EC134+EG134 -> 0 | L134: =S134+W134+AA134+AE134+AI134+AM134+AQ134+AU134+AY134+BC134+BG134+BK134+BO134+BS134+BW134+CA134+CE134+CI134+CM134+CQ134+CU134+CY134+DC134+DG134+DK134+DO134+DS134+DW134+EA134+EE134+EI134 -> 0 | M134: PCS
A135: 曾小根 | C135: 高礼宾 | D135: 花库-卿本佳人 | E135: 61件/套 | F135: 塑封膜 | J135: =O135+K135-L135 -> 0 | K135: =Q135+U135+Y135+AC135+AG135+AK135+AO135+AS135+AW135+BA135+BE135+BI135+BM135+BQ135+BU135+BY135+CC135+CG135+CK135+CO135+CS135+CW135+DA135+DE135+DI135+DM135+DQ135+DU135+DY135+EC135+EG135 -> 0 | L135: =S135+W135+AA135+AE135+AI135+AM135+AQ135+AU135+AY135+BC135+BG135+BK135+BO135+BS135+BW135+CA135+CE135+CI135+CM135+CQ135+CU135+CY135+DC135+DG135+DK135+DO135+DS135+DW135+EA135+EE135+EI135 -> 0 | M135: PCS
A136: 曾小根 | C136: 高礼宾 | D136: 10ml钉子 | F136: 胶钉子
A137: 曾小根 | C137: 高礼宾 | D137: 10ml钉子 | E137: 10ml | F137: 胶钉子 | G137: 10ml | J137: =O137+K137-L137 -> -2420 | K137: =Q137+U137+Y137+AC137+AG137+AK137+AO137+AS137+AW137+BA137+BE137+BI137+BM137+BQ137+BU137+BY137+CC137+CG137+CK137+CO137+CS137+CW137+DA137+DE137+DI137+DM137+DQ137+DU137+DY137+EC137+EG137 -> 0 | L137: =S137+W137+AA137+AE137+AI137+AM137+AQ137+AU137+AY137+BC137+BG137+BK137+BO137+BS137+BW137+CA137+CE137+CI137+CM137+CQ137+CU137+CY137+DC137+DG137+DK137+DO137+DS137+DW137+EA137+EE137+EI137 -> 2420 | M137: PCS | CH137: 0003007 | CI137: 2420
A138: 曾小根 | C138: 高礼宾 | D138: 10mL内塞 | E138: 10ml | F138: 胶钉子 | G138: 10ml | J138: -2420 | K138: 0 | L138: 2420 | M138: PCS | CH138: 0003007 | CI138: 2420
A139: 曾小根 | C139: 高礼宾 | D139: 2ml钉子 | E139: 2ml | F139: 钉子 | G139: 2ml | J139: 0 | K139: 0 | L139: 0 | M139: PCS
A140: 曾小根 | C140: 高礼宾 | D140: 2ml钉子 | E140: 2ml | F140: 胶钉子 | G140: 2ml | J140: -2420 | K140: 0 | L140: 2420 | M140: PCS | CH140: 0003007 | CI140: 2420
A143: 曾小根 | C143: 高礼宾 | D143: 38.5*52cm | F143: 38.5*52cm | J143: 0 | K143: 0 | L143: 0 | M143: PCS
A144: 曾小根 | C144: 高礼宾 | D144: 5ml内塞 | E144: 5ml | F144: 胶内塞 | G144: 5ml | J144: -1640 | K144: 0 | L144: 1640 | M144: PCS | CH144: 0003007 | CI144: 1640
A145: 曾小根 | C145: 高礼宾 | D145: 5ml内塞 | E145: 5ml | F145: 胶内塞 | G145: 5ml | J145: -1640 | K145: 0 | L145: 1640 | M145: PCS | CH145: 0003007 | CI145: 1640
A146: 曾小根 | C146: 高礼宾 | D146: 爱意情迷套盒 | E146: 36件/套 | F146: 套盒 | G146: 36件/套 | J146: 0 | K146: 0 | L146: 0 | M146: PCS
A147: 曾小根 | C147: 高礼宾 | D147: 爱意情迷套盒 | E147: 36件/套 | F147: 套盒标 | G147: 36件/套 | J147: 0 | K147: 0 | L147: 0 | M147: PCS
A148: 曾小根 | C148: 高礼宾 | D148: 爱意情迷套盒 | E148: 36件/套 | F148: 塑封膜 | J148: 0 | K148: 0 | L148: 0 | M148: PCS
A149: 曾小根 | C149: 高礼宾 | D149: 花度-爱慕情缘套 | E149: 58件/套 | F149: 套盒 | G149: 58件/套 | J149: 0 | K149: 0 | L149: 0 | M149: PCS
A150: 曾小根 | C150: 高礼宾 | D150: 花度-爱慕情缘套 | E150: 58件/套 | F150: 套盒名称标 | G150: 58件/套 | J150: 0 | K150: 0 | L150: 0 | M150: PCS
A151: 曾小根 | C151: 高礼宾 | D151: 花度-爱慕情缘套 | E151: 58件/套 | F151: 素女经 | G151: 58件/套 | J151: 0 | K151: 0 | L151: 0 | M151: PCS
A152: 曾小根 | C152: 高礼宾 | D152: 花度-爱慕情缘套 | E152: 58件/套 | F152: 助推棒 | G152: 58件/套 | J152: 0 | K152: 0 | L152: 0 | M152: PCS
A153: 曾小根 | C153: 高礼宾 | D153: 花度-爱慕情缘套 | E153: 58件/套 | F153: 塑封膜 | G153: 51.5*66cm | J153: 0 | K153: 0 | L153: 0 | M153: PCS
A154: 曾小根 | C154: 高礼宾 | D154: 花度-爱慕情缘套、花库-卿本佳人 | E154: 58件/套 | F154: 500分印花 | G154: 58件/套 | J154: 0 | K154: 0 | L154: 0 | M154: PCS
A155: 曾小根 | C155: 高礼宾 | D155: 花度-爱慕柔情霜 | E155: 2g | F155: 折断瓶 | G155: 2g | J155: 0 | K155: 0 | L155: 0 | M155: PCS
A156: 曾小根 | C156: 高礼宾 | D156: 花度-爱慕柔情霜 | E156: 2g | F156: 胶塞 | G156: 2g | J156: 0 | K156: 0 | L156: 0 | M156: PCS
A157: 曾小根 | C157: 高礼宾 | D157: 花度-爱慕柔情霜 | E157: 2g | F157: 塞钉 | G157: 2g | J157: 0 | K157: 0 | L157: 0 | M157: PCS
A158: 曾小根 | C158: 高礼宾 | D158: 花度-粉嫩娇颜 | E158: / | F158: 不干胶 | G158: / | J158: 100 | K158: 100 | L158: 0 | M158: PCS | CB158: 0002938 | CC158: 100
A162: 曾小根 | C162: 高礼宾 | D162: 花度-粉嫩娇颜套、花度-爱慕情缘套、花度-腹活能量SPA、花度-蒙娜丽莎之吻套、花度-紧致如初套、花库-欢沁花语、花库-花韵红颜、花库-凤御媚妍、花库-卿本佳人、花库-紧致如初套、花库-蒙娜丽莎之吻套 | E162: 24件/套 | F162: 空白牛油纸 | G162: 24件/套 | J162: 0 | K162: 0 | L162: 0 | M162: PCS
A165: 曾小根 | C165: 高礼宾 | D165: 花度-腹活能量SPA | E165: 21件/套 | F165: 套盒 | G165: 21件/套 | J165: =O165+K165-L165 -> 0 | K165: =Q165+U165+Y165+AC165+AG165+AK165+AO165+AS165+AW165+BA165+BE165+BI165+BM165+BQ165+BU165+BY165+CC165+CG165+CK165+CO165+CS165+CW165+DA165+DE165+DI165+DM165+DQ165+DU165+DY165+EC165+EG165 -> 0 | L165: =S165+W165+AA165+AE165+AI165+AM165+AQ165+AU165+AY165+BC165+BG165+BK165+BO165+BS165+BW165+CA165+CE165+CI165+CM165+CQ165+CU165+CY165+DC165+DG165+DK165+DO165+DS165+DW165+EA165+EE165+EI165 -> 0 | M165: PCS
A166: 曾小根 | C166: 高礼宾 | D166: 花度-腹活能量SPA | E166: 21件/套 | F166: 套盒名称标 | G166: 21件/套 | J166: 0 | K166: 0 | L166: 0 | M166: PCS
A167: 曾小根 | C167: 高礼宾 | D167: 花度-腹活能量SPA | E167: 21件/套 | F167: 塑封膜 | G167: 34*59cm | J167: 0 | K167: 0 | L167: 0 | M167: PCS
A168: 曾小根 | C168: 高礼宾 | D168: 花度-腹活能量SPA、花度-紧致如初套、花库-紧致如初套 | E168: 21件/套 | F168: 75分印花 | G168: 21件/套 | J168: 0 | K168: 0 | L168: 0 | M168: PCS
A169: 曾小根 | C169: 高礼宾 | D169: 花度-腹活能量精华 | E169: 10ml | F169: 白色安瓶 | G169: 10ml | J169: 0 | K169: 0 | L169: 0 | M169: PCS
A170: 曾小根 | C170: 高礼宾 | D170: 花度-腹活能量精华 | E170: 10ml | F170: 白胶塞 | G170: 10ml | J170: 0 | K170: 0 | L170: 0 | M170: PCS
A171: 曾小根 | C171: 高礼宾 | D171: 花度-腹活能量精华 | E171: 10ml | F171: 金色铝盖 | G171: 10ml | J171: 0 | K171: 0 | L171: 0 | M171: PCS
A172: 曾小根 | C172: 高礼宾 | D172: 花度-腹活能量膜 | E172: 30g | F172: 铝箔袋（花度-腹活能量膜） | G172: 30g | J172: 0 | K172: 0 | L172: 0 | M172: PCS
A173: 曾小根 | C173: 高礼宾 | D173: 花度-腹活能量膜 | E173: 30g | F173: A384膜布 | G173: 30g | J173: 0 | K173: 0 | L173: 0 | M173: PCS
A174: 曾小根 | C174: 高礼宾 | D174: 花度-腹活能量膜 | E174: 30g | F174: 丝带 | J174: 0 | K174: 0 | L174: 0 | M174: PCS
A175: 曾小根 | C175: 高礼宾 | D175: 花度-腹活元素 | E175: 10ml | F175: 透明塑瓶 | G175: 10ml | J175: 0 | K175: 0 | L175: 0 | M175: PCS
A176: 曾小根 | C176: 高礼宾 | D176: 花度-腹活元素 | E176: 10ml | F176: 喷雾泵头 | G176: 10ml | J176: 0 | K176: 0 | L176: 0 | M176: PCS
A177: 曾小根 | C177: 高礼宾 | D177: 花度-腹活元素 | E177: 10ml | F177: 透明外罩 | G177: 10ml | J177: 0 | K177: 0 | L177: 0 | M177: PCS
A178: 曾小根 | C178: 高礼宾 | D178: 花度-腹活元素 | E178: 5ml | F178: 玻璃瓶 | G178: 5ml | J178: 0 | K178: 0 | L178: 0 | M178: PCS
A179: 曾小根 | C179: 高礼宾 | D179: 花度-娇媚爱洛蒙霜 | E179: 30g | F179: 亚克力瓶 | G179: 30g | J179: 0 | K179: 0 | L179: 0 | M179: PCS
A180: 曾小根 | C180: 高礼宾 | D180: 花度-娇媚爱洛蒙霜 | E180: 30g | F180: 手拉内垫 | G180: 30g | J180: 0 | K180: 0 | L180: 0 | M180: PCS
A181: 曾小根 | C181: 高礼宾 | D181: 花度-娇媚爱洛蒙霜 | E181: 30g | F181: 外盖 | G181: 30g | J181: 0 | K181: 0 | L181: 0 | M181: PCS
A182: 曾小根 | C182: 高礼宾 | D182: 花度-娇媚爱洛蒙霜 | E182: 30g | F182: 亚克力瓶 | G182: 30g | J182: 0 | K182: 0 | L182: 0 | M182: PCS
A183: 曾小根 | C183: 高礼宾 | D183: 花度-娇俏凝香露 | E183: 5ml | F183: 透明塑瓶 | G183: 5ml | J183: 0 | K183: 0 | L183: 0 | M183: PCS
A184: 曾小根 | C184: 高礼宾 | D184: 花度-娇俏凝香露 | E184: 5ml | F184: 喷雾泵头 | G184: 5ml | J184: 0 | K184: 0 | L184: 0 | M184: PCS
A185: 曾小根 | C185: 高礼宾 | D185: 花度-娇俏凝香露 | E185: 5ml | F185: 外罩 | G185: 5ml | J185: 0 | K185: 0 | L185: 0 | M185: PCS
A186: 曾小根 | C186: 高礼宾 | D186: 花度-娇俏凝香露 | E186: 5ml | F186: 玻璃瓶 | G186: 5ml | J186: -820 | K186: 0 | L186: 820 | M186: PCS | CL186: 0003649 | CM186: 820
A187: 曾小根 | C187: 高礼宾 | D187: 花度-娇俏凝香露/醉花因腹活元素/臻美润肤露 | E187: 5ml | F187: 喷头 | G187: 5ml | J187: 0 | K187: 0 | L187: 0 | M187: PCS
A188: 曾小根 | C188: 高礼宾 | D188: 花度-娇俏凝香露/醉花因腹活元素/臻美润肤露 | E188: 5ml | F188: 吸管 | G188: 5ml | J188: 0 | K188: 0 | L188: 0 | M188: PCS
A189: 曾小根 | C189: 高礼宾 | D189: 花度-娇俏凝香霜 | E189: 10g | F189: 折断瓶 | G189: 10g | J189: 20 | K189: 820 | L189: 800 | M189: PCS | CB189: 0002938 | CC189: 820 | CL189: 0003649 | CM189: 800
A190: 曾小根 | C190: 高礼宾 | D190: 花度-娇俏凝香霜 | E190: 10g | F190: 胶塞 | G190: 10g | J190: 0 | K190: 0 | L190: 0 | M190: PCS
A191: 曾小根 | C191: 高礼宾 | D191: 花度-娇俏凝香霜 | E191: 10g | F191: 钉子 | G191: 10g | J191: 0 | K191: 0 | L191: 0 | M191: PCS
A192: 曾小根 | C192: 高礼宾 | D192: 花度-娇俏凝香霜 | E192: / | F192: 塑料瓶 | G192: / | J192: 0 | K192: 0 | L192: 0 | M192: PCS
A193: 曾小根 | C193: 高礼宾 | D193: 花度-娇俏嫣红素 | E193: 2ml | F193: 折断瓶 | G193: 2ml | J193: 0 | K193: 820 | L193: 820 | M193: PCS | CB193: 0002938 | CC193: 820 | CL193: 003649 | CM193: 820
A194: 曾小根 | C194: 高礼宾 | D194: 花度-娇俏嫣红素 | E194: 2ml | F194: 胶塞 | G194: 2ml | J194: 0 | K194: 0 | L194: 0 | M194: PCS
A195: 曾小根 | C195: 高礼宾 | D195: 花度-娇俏嫣红素 | E195: 2ml | F195: 钉子 | G195: 2ml | J195: 0 | K195: 0 | L195: 0 | M195: PCS
A196: 曾小根 | C196: 高礼宾 | D196: 花度-紧致如初 | E196: / | F196: 不干胶 | G196: / | J196: 0 | K196: 0 | L196: 0 | M196: PCS
A197: 曾小根 | C197: 高礼宾 | D197: 花度-紧致如初套 | E197: 12件/套 | F197: 套盒 | G197: 12件/套 | J197: 0 | K197: 0 | L197: 0 | M197: PCS
A198: 曾小根 | C198: 高礼宾 | D198: 花度-紧致如初套 | E198: 12件/套 | F198: 套盒标 | G198: 12件/套 | J198: 0 | K198: 0 | L198: 0 | M198: PCS
A199: 曾小根 | C199: 高礼宾 | D199: 花度-紧致如初套 | E199: 12件/套 | F199: 塑封膜 | G199: 23*32cm | J199: 0 | K199: 0 | L199: 0 | M199: PCS
A200: 曾小根 | C200: 高礼宾 | D200: 花度-美丝柔肤贴膜 | E200: 10ml | F200: 铝箔袋（润羞-美丝膜） | G200: 10ml | J200: 0 | K200: 0 | L200: 0 | M200: PCS
A201: 曾小根 | C201: 高礼宾 | D201: 花度-美丝柔肤贴膜、花库-美丝柔肤贴膜 | E201: 10ml | F201: 唇膜+珠光膜 | G201: 10ml | J201: 0 | K201: 0 | L201: 0 | M201: PCS
A202: 曾小根 | C202: 高礼宾 | D202: 花度-蒙娜丽莎 | E202: / | F202: 不干胶 | G202: / | J202: 0 | K202: 0 | L202: 0 | M202: PCS
A203: 曾小根 | C203: 高礼宾 | D203: 花度-蒙娜丽莎之吻套 | E203: 32件/套 | F203: 套盒 | G203: 40件/套 | J203: 0 | K203: 0 | L203: 0 | M203: PCS
A204: 曾小根 | C204: 高礼宾 | D204: 花度-蒙娜丽莎之吻套 | E204: 32件/套 | F204: 套盒标 | G204: 40件/套 | J204: 0 | K204: 0 | L204: 0 | M204: PCS
A205: 曾小根 | C205: 高礼宾 | D205: 花度-蒙娜丽莎之吻套 | E205: 32件/套 | F205: 塑封膜 | G205: 29.5*47cm | J205: 0 | K205: 0 | L205: 0 | M205: PCS
A206: 曾小根 | C206: 高礼宾 | D206: 花度-蒙娜丽莎之吻套、花库-欢沁花语、花库-凤御媚妍、花库-蒙娜丽莎之吻套 | F206: 175分印花 | J206: 0 | K206: 0 | L206: 0 | M206: PCS
A207: 曾小根 | C207: 高礼宾 | D207: 花度-慕思润泽乳 | E207: 50ml | F207: 塑瓶 | G207: 50ml | J207: 0 | K207: 0 | L207: 0 | M207: PCS
A208: 曾小根 | C208: 高礼宾 | D208: 花度-慕思润泽乳 | E208: 50ml | F208: 套盒 | G208: 50ml | J208: 0 | K208: 0 | L208: 0 | M208: PCS
A209: 曾小根 | C209: 高礼宾 | D209: 花度-慕思润泽乳、花库-慕思润泽乳、润羞-慕思润泽乳 | E209: 50ml | F209: 13分印花 | G209: 50ml | J209: 0 | K209: 0 | L209: 0 | M209: PCS
A210: 曾小根 | C210: 高礼宾 | D210: 花度-慕思润泽乳 | E210: 50ml | F210: 塑瓶 | G210: 50ml | J210: 0 | K210: 0 | L210: 0 | M210: PCS
A211: 曾小根 | C211: 高礼宾 | D211: 花度-慕思润泽乳、花库-慕思润泽乳、润羞-慕思润泽乳 | E211: 50ml | F211: 外盖 | G211: 50ml | J211: 0 | K211: 0 | L211: 0 | M211: PCS
A212: 曾小根 | C212: 高礼宾 | D212: 花度-慕思润泽乳 | E212: 50ml | F212: 名称标 | G212: 50ml | J212: 0 | K212: 0 | L212: 0 | M212: PCS
A213: 曾小根 | C213: 高礼宾 | D213: 花度-慕思润泽乳、花库-慕思润泽乳、润羞-慕思润泽乳 | E213: 50ml | F213: 塑封膜 | G213: 17*30cm | J213: 0 | K213: 0 | L213: 0 | M213: PCS
A214: 曾小根 | C214: 高礼宾 | D214: 花度-慕思润泽乳、花库-慕思润泽乳、润羞-慕思润泽乳 | E214: 50ml | F214: 喷雾泵头 | G214: 50ml | J214: 0 | K214: 0 | L214: 0 | M214: PCS
A215: 曾小根 | C215: 高礼宾 | D215: 花度-凝香露套 | E215: 30ml | F215: 套盒 | G215: 30ml | J215: 0 | K215: 0 | L215: 0 | M215: PCS
A216: 曾小根 | C216: 高礼宾 | D216: 花度-凝香露套 | E216: 30ml | F216: 10分印花 | G216: 30ml | J216: 0 | K216: 0 | L216: 0 | M216: PCS
A217: 曾小根 | C217: 高礼宾 | D217: 花度-凝香露套 | E217: 30ml | F217: 塑瓶 | G217: 30ml | J217: 0 | K217: 0 | L217: 0 | M217: PCS
A219: 曾小根 | C219: 高礼宾 | D219: 花度-凝香露套 | E219: 30ml | F219: 名称标 | G219: 30ml | J219: 0 | K219: 0 | L219: 0 | M219: PCS
... 1331 more rows

Sheet Sheet1 (hidden)
A1: 业 务 | B1: 客户名称 | C1: 产品名称 | D1: 产品规格 | E1: 物料名称 | F1: 物料规格 | G1: 本月结存
A3: 曾小根 | B3: 高礼宾 | C3: 花度-粉嫩娇颜套 | D3: 24件/套 | E3: 套盒 | F3: 24件/套 | G3: -100
A4: 曾小根 | B4: 高礼宾 | C4: 花度-粉嫩娇颜套 | D4: 24件/套 | E4: 套盒名称标 | F4: 24件/套 | G4: -100
A5: 曾小根 | B5: 高礼宾 | C5: 花度-粉嫩娇颜套 | D5: 24件/套 | E5: 塑封膜 | F5: 38.5*52cm | G5: -100
A6: 曾小根 | B6: 高礼宾 | C6: 花度-粉嫩娇颜套、花度-爱慕情缘套、花度-腹活能量SPA、醉花因-腹活能量SPA套盒、润羞-风尚柔情套盒、润羞-粉红诱惑、 花库-卿本佳人 | D6: 24件/套 | E6: 推杆 | G6: -200
A7: 曾小根 | B7: 高礼宾 | C7: 花度-凝香露套 | D7: 30ml | E7: 喷雾泵头 | F7: 30ml | G7: -1000
A8: 曾小根 | B8: 高礼宾 | C8: 花度-性香原液 | D8: 10ml | E8: 玻璃瓶 | F8: 10ml | G8: -1000
A9: 曾小根 | B9: 高礼宾 | C9: 花度-性香原液 | D9: 10ml | E9: 名称标 | F9: 10ml | G9: -1000
A10: 曾小根 | B10: 高礼宾 | C10: 润羞-性香原液、醉花因-性香原液、花库-性香原液、花度-性香原液 | D10: 10ml | E10: 13印花 | F10: 10ml | G10: -1000
A11: 曾小根 | B11: 高礼宾 | C11: 润羞-性香原液、醉花因-性香原液、花库-性香原液、花度-性香原液 | D11: 10ml | E11: 塑缩膜 | F11: 10ml | G11: -1000
A12: 曾小根 | B12: 高礼宾 | C12: 润羞-性香原液、醉花因-性香原液、花库-性香原液、花度-性香原液 | D12: 10ml | E12: 泵头 | F12: 10ml | G12: -1000
A13: 曾小根 | B13: 王丽 | C13: 合济堂泡浴养护粉（I号）/合济堂泡浴养护粉（II号）/合济堂泡浴养护粉（III号）/合济堂泡浴养护粉（IV号）/合济堂泡浴养护粉（V号）/合济堂泡浴养护粉（VI号） | D13: 100g | E13: 铝箔袋 | F13: 100g | G13: -200
A14: 曾小根 | B14: 王丽 | C14: 合济堂泡浴养护粉（VI号） | D14: 100g | E14: 品名标 | F14: 100g | G14: -251
A15: 杨克江 | B15: 汤海飞 | C15: 多肽雪肌霜 | D15: 50g | E15: 垫片 | F15: 50g | G15: -11
A16: 杨克江 | B16: 汤海飞 | C16: 多肽雪肌霜 | D16: 50g | E16: 盖子 | F16: 50g | G16: -9
A17: 杨克江 | B17: 汤海飞 | C17: 多肽雪肌霜 | D17: 50g | E17: 塑料瓶 | F17: 50g | G17: -7
A18: 曾小根 | B18: 刘铁成（朗顿） | C18: 幻彩柔丝秘贴1 | D18: 10ml | E18: 铝箔袋 | F18: 10ml | G18: -1600
A19: 曾小根 | B19: 刘铁成（朗顿） | C19: 幻彩柔丝秘贴1 | D19: 10ml | E19: 唇膜 | F19: 10ml | G19: -1600
A20: 曾小根 | B20: 刘铁成（朗顿） | C20: 幻彩柔丝秘贴1 | D20: 10ml | E20: 珠光膜 | F20: 10ml | G20: -1600
A21: 黄细娇 | B21: 工厂 | C21: 透明瓶 | D21: 500ml | E21: 塑料瓶 | F21: 500ml | G21: -62
A22: 黄细娇 | B22: 工厂 | C22: 透明瓶 | D22: 500ml | E22: 喷头 | F22: 500ml | G22: -62
A23: 黄细娇 | B23: 工厂 | C23: 透明袋 | D23: 1kg | E23: 袋装 | F23: 1kg | G23: -100
A24: 林静 | B24: 黄仲祥 | C24: 水光嫩肤尊享套 | D24: 21件套 | E24: 镊子 | G24: -30
A25: 林静 | B25: 黄仲祥 | C25: 水光嫩肤尊享套 | D25: 21件套 | E25: 塑封膜 | G25: -35
A26: 林静 | B26: 黄仲祥 | C26: 水光嫩肤尊享套 | D26: 21件套 | E26: 垫片 | G26: -30
A27: 曾小根 | B27: 马文英 | C27: 玫瑰精油 | D27: 10ml | E27: 茶色精油（烫金） | F27: 10ml | G27: -100
A28: 曾小根 | B28: 马文英 | C28: 玫瑰精油 | D28: 10ml | E28: 内塞 | F28: 10ml | G28: -100
A29: 曾小根 | B29: 马文英 | C29: 玫瑰精油 | D29: 10ml | E29: 名称贴 | F29: 10ml | G29: -100
A30: 曾小根 | B30: 马文英 | C30: 玫瑰精油 | D30: 10ml | E30: 垫片 | F30: 10ml | G30: -100
A31: 曾小根 | B31: 马文英 | C31: 玫瑰精油 | D31: 10ml | E31: 螺纹金盖 | F31: 10ml | G31: -100
A32: 曾小根 | B32: 马文英 | C32: 玫瑰精油 | D32: 10ml | E32: 标贴 | F32: 10ml | G32: -100
A33: 曾小根 | B33: 马文英 | C33: 玫瑰精油 | D33: 10ml | E33: 茶色精油（烫银） | F33: 10ml | G33: -100
A34: 曾小根 | B34: 马文英 | C34: 玫瑰精油 | D34: 10ml | E34: 内塞 | F34: 10ml | G34: -100
A35: 曾小根 | B35: 马文英 | C35: 玫瑰精油 | D35: 10ml | E35: 名称贴 | F35: 10ml | G35: -100
A36: 曾小根 | B36: 马文英 | C36: 玫瑰精油 | D36: 10ml | E36: 垫片 | F36: 10ml | G36: -100
A37: 曾小根 | B37: 马文英 | C37: 蕴能精油 | D37: 10ml | E37: 茶色精油（烫银） | F37: 10ml | G37: -100
A38: 曾小根 | B38: 马文英 | C38: 蕴能精油 | D38: 10ml | E38: 内塞 | F38: 10ml | G38: -100
A39: 曾小根 | B39: 马文英 | C39: 蕴能精油 | D39: 10ml | E39: 螺纹金盖 | F39: 10ml | G39: -100
A40: 曾小根 | B40: 马文英 | C40: 蕴能精油 | D40: 10ml | E40: 垫片 | G40: -100
A41: 曾小根 | B41: 马文英 | C41: 蕴能精油 | D41: 10ml | E41: 名称标 | F41: 10ml | G41: -100
A42: 曾小根 | B42: 马文英 | C42: 蕴能精油 | D42: 10ml | E42: 茶色精油（烫金） | F42: 10ml | G42: -100
A43: 曾小根 | B43: 马文英 | C43: 蕴能精油 | D43: 10ml | E43: 内塞 | F43: 10ml | G43: -100
A44: 曾小根 | B44: 马文英 | C44: 蕴能精油 | D44: 10ml | E44: 垫片 | F44: 10ml | G44: -100
A45: 曾小根 | B45: 马文英 | C45: 蕴能精油 | D45: 10ml | E45: 螺纹金盖 | F45: 10ml | G45: -100
A46: 曾小根 | B46: 马文英 | C46: 蕴能精油 | D46: 10ml | E46: 名称标 | F46: 10ml | G46: -100
A47: 曾小根 | B47: 王丽 | C47: 合济堂养颜美体药泡套 | D47: 10件套 | E47: 套盒 | F47: 10件套 | G47: -480
A48: 曾小根 | B48: 王丽 | C48: 合济堂泡浴养护粉（II号） | D48: 100g | E48: 品名标 | F48: 100g | G48: -200
A49: 杨克江 | B49: 王晓君 | C49: EGF生长因子复合液 | D49: 5ML | E49: 喇叭头+盖子 | F49: 5ml | G49: -100
A50: 曾小根 | B50: 王丽 | C50: 合济堂泡浴养护粉（VI号） | D50: 100g | E50: 品名标 | F50: 100g | G50: -251
A51: 曾小根 | B51: 王丽 | C51: 合济堂泡浴养护粉（V号）、合济堂泡浴养护粉（I号）、合济堂泡浴养护粉（II号）、合济堂泡浴养护粉（III号）、合济堂泡浴养护粉（VI号） | D51: 100g | E51: 说明书 | F51: 100g | G51: -1200
A52: 曾小根 | B52: 王丽 | C52: 合济堂泡浴养护粉（V号）、合济堂泡浴养护粉（I号）、合济堂泡浴养护粉（II号）、合济堂泡浴养护粉（III号）、合济堂泡浴养护粉（VI号） | D52: 100g | E52: 10积分卡 | F52: 100g | G52: -1200
A53: 杨克江 | B53: 汤海飞 | C53: 柳橙节亮颜皮膜液 | D53: 40ml | E53: 红色玻璃瓶 | F53: 40ml | G53: -185
A54: 杨克江 | B54: 汤海飞 | C54: 柳橙节亮颜皮膜液 | D54: 40ml | E54: 压嘴喷雾头 | F54: 40ml | G54: -185
A55: 杨克江 | B55: 汤海飞 | C55: 柳橙节亮颜皮膜液 | D55: 40ml | E55: 外盖 | F55: 40ml | G55: -185
A56: 杨克江 | B56: 汤海飞 | C56: 柳橙节亮颜皮膜液 | D56: 40ml | E56: 产品标贴 | F56: 40ml | G56: -185
A57: 杨克江 | B57: 汤海飞 | C57: 柳橙节亮颜皮膜液 | D57: 40ml | E57: 成分标 | F57: 40ml | G57: -185
A58: 杨克江 | B58: 汤海飞 | C58: 柳橙节亮颜皮膜液 | D58: 40ml | E58: 内托 | F58: 40ml | G58: -185
A59: 杨克江 | B59: 汤海飞 | C59: 柳橙节亮颜皮膜液 | D59: 40ml | E59: 彩盒 | F59: 40ml | G59: -185
A60: 杨克江 | B60: 汤海飞 | C60: 柳橙节亮颜皮膜液 | D60: 40ml | E60: 塑封膜 | F60: 40ml | G60: -185
A61: 杨克江 | B61: 汤海飞 | C61: 苹果节活性肽皮膜液 | D61: 40ml | E61: 红色玻璃瓶 | F61: 40ml | G61: -185
A62: 杨克江 | B62: 汤海飞 | C62: 苹果节活性肽皮膜液 | D62: 40ml | E62: 压嘴喷雾头 | F62: 40ml | G62: -185
A63: 杨克江 | B63: 汤海飞 | C63: 苹果节活性肽皮膜液 | D63: 40ml | E63: 外盖 | F63: 40ml | G63: -185
A64: 杨克江 | B64: 汤海飞 | C64: 苹果节活性肽皮膜液 | D64: 40ml | E64: 产品标贴 | F64: 40ml | G64: -185
A65: 杨克江 | B65: 汤海飞 | C65: 苹果节活性肽皮膜液 | D65: 40ml | E65: 成分标 | F65: 40ml | G65: -185
A66: 杨克江 | B66: 汤海飞 | C66: 苹果节活性肽皮膜液 | D66: 40ml | E66: 内托 | F66: 40ml | G66: -185
A67: 杨克江 | B67: 汤海飞 | C67: 苹果节活性肽皮膜液 | D67: 40ml | E67: 彩盒 | F67: 40ml | G67: -185
A68: 杨克江 | B68: 汤海飞 | C68: 苹果节活性肽皮膜液 | D68: 40ml | E68: 塑封膜 | F68: 40ml | G68: -185
A69: 杨克江 | B69: 汤海飞 | C69: 芒果节活性肽皮膜液 | D69: 40ml | E69: 红色玻璃瓶 | F69: 40ml | G69: -185
A70: 杨克江 | B70: 汤海飞 | C70: 芒果节活性肽皮膜液 | D70: 40ml | E70: 压嘴喷雾头 | F70: 40ml | G70: -185
A71: 杨克江 | B71: 汤海飞 | C71: 芒果节活性肽皮膜液 | D71: 40ml | E71: 外盖 | F71: 40ml | G71: -185
A72: 杨克江 | B72: 汤海飞 | C72: 芒果节活性肽皮膜液 | D72: 40ml | E72: 产品标贴 | F72: 40ml | G72: -185
A73: 杨克江 | B73: 汤海飞 | C73: 芒果节活性肽皮膜液 | D73: 40ml | E73: 成分标 | F73: 40ml | G73: -185
A74: 杨克江 | B74: 汤海飞 | C74: 芒果节活性肽皮膜液 | D74: 40ml | E74: 内托 | F74: 40ml | G74: -185
A75: 杨克江 | B75: 汤海飞 | C75: 芒果节活性肽皮膜液 | D75: 40ml | E75: 彩盒 | F75: 40ml | G75: -185
A76: 杨克江 | B76: 汤海飞 | C76: 芒果节活性肽皮膜液 | D76: 40ml | E76: 塑封膜 | F76: 40ml | G76: -195
A77: 杨克江 | B77: 汤海飞 | C77: 葡萄节多肽皮膜液 | D77: 40ml | E77: 红色玻璃瓶 | F77: 40ml | G77: -195
A78: 杨克江 | B78: 汤海飞 | C78: 葡萄节多肽皮膜液 | D78: 40ml | E78: 压嘴喷雾头 | F78: 40ml | G78: -195
A79: 杨克江 | B79: 汤海飞 | C79: 葡萄节多肽皮膜液 | D79: 40ml | E79: 外盖 | F79: 40ml | G79: -195
A80: 杨克江 | B80: 汤海飞 | C80: 葡萄节多肽皮膜液 | D80: 40ml | E80: 产品标贴 | F80: 40ml | G80: -195
A81: 杨克江 | B81: 汤海飞 | C81: 葡萄节多肽皮膜液 | D81: 40ml | E81: 成分标 | F81: 40ml | G81: -195
A82: 杨克江 | B82: 汤海飞 | C82: 葡萄节多肽皮膜液 | D82: 40ml | E82: 内托 | F82: 40ml | G82: -195
A83: 杨克江 | B83: 汤海飞 | C83: 葡萄节多肽皮膜液 | D83: 40ml | E83: 彩盒 | F83: 40ml | G83: -195
A84: 杨克江 | B84: 汤海飞 | C84: 葡萄节多肽皮膜液 | D84: 40ml | E84: 塑封膜 | F84: 40ml | G84: -195

Sheet 问题记录
B1: 云南翘楚6688的单在哪？
B2: 云南翘楚的有疑问
B3: 马文英中间缺页
B4: 吴龙因在数据上只有四个货品，有单未录入
B5: 昇凰的泌爱凝香滋润53个喷头和52个外盖领料未有数据处理；

Sheet 统计
A3: 行标签 | B3: 计数项:产品名称
A4: 洁士宝 | B4: 15 | D4: 洁士宝 | E4: 15
A5: 郎顿 | B5: 58 | D5: 郎顿 | E5: 58
A6: 刘海平 | B6: 14 | D6: 刘海平 | E6: 14
A7: 马文英 | B7: 98 | D7: 马文英 | E7: 98
A8: 昇凰 | B8: 11 | C8: 有退单 | D8: 昇凰 | E8: 11
A9: 苏眉 | B9: 14 | D9: 苏眉 | E9: 14
A10: 隋新城 | B10: 25 | D10: 隋新城 | E10: 25
A11: 田惠 | B11: 12 | D11: 田惠 | E11: 12
A12: 王琦 | B12: 101 | D12: 王琦 | E12: 101
A13: 文奇嘉美 | B13: 16 | D13: 文奇嘉美 | E13: 16
A14: 吴斌 | B14: 11 | D14: 吴斌 | E14: 11
A15: 吴彩霞 | B15: 4 | D15: 吴彩霞 | E15: 4
A16: 吴刚 | B16: 6 | D16: 吴刚 | E16: 6
A17: 吴龙因 | B17: 4 | D17: 吴龙因 | E17: 4
A18: 云南翘楚 | B18: 67 | D18: 云南翘楚 | E18: 67
A19: 张俊江 | B19: 40 | D19: 张俊江 | E19: 40
A20: 赵国民 | D20: 赵国民
A21: (空白)
A22: 总计 | B22: 496

Sheet Sheet2
B1: 客户名称 | C1: 物料名称 | D1: 公式结存
B2: 洁士宝 | C2: *彩* | D2: 1000
B3: 郎顿 | D3: >3000
